Department Family,Entity,Date Paid,Expense Type,Expense Area,Supplier,Transaction Number,Amount (�),Supplier VAT Registration Number
BEIS,Met Office,2023-11-01,06 ACCOMMODATION,CHIEF FINANCIAL OFFICER,ABOVE THE REST COMMERCIAL CLEANING LTD,485082,41,166969348
BEIS,Met Office,2023-11-01,06 ACCOMMODATION,CHIEF FINANCIAL OFFICER,ABOVE THE REST COMMERCIAL CLEANING LTD,485083,565,166969348
BEIS,Met Office,2023-11-20,11 SERVICES,CHIEF FINANCIAL OFFICER,ACHILLES INFORMATION LIMITED,485849,14320,GB 663 5624 23
BEIS,Met Office,2023-11-15,06 ACCOMMODATION,CHIEF FINANCIAL OFFICER,ADT FIRE AND SECURITY PLC,485731,346.75,413633086
BEIS,Met Office,2023-11-21,11 SERVICES,CHIEF FINANCIAL OFFICER,ALLSTAR BUSINESS SOLUTIONS LTD,485856,3167.66,747880191
BEIS,Met Office,2023-11-02,11 SERVICES,CHIEF FINANCIAL OFFICER,ALLSTAR BUSINESS SOLUTIONS LTD,485206,3332.97,747880191
BEIS,Met Office,2023-11-06,13 MISCELLANEOUS,CHIEF FINANCIAL OFFICER,ANTRIM HILLS SPRING WATER CO LTD,485147,27,517173455
BEIS,Met Office,2023-11-20,11 SERVICES,CHIEF FINANCIAL OFFICER,ANVIL MOBILE LIMITED,485558,-335.42,981686175
BEIS,Met Office,2023-11-20,11 SERVICES,CHIEF FINANCIAL OFFICER,ANVIL MOBILE LIMITED,485654,82.6,981686175
BEIS,Met Office,2023-11-15,11 SERVICES,CHIEF FINANCIAL OFFICER,APPLE CENTRAL TAXIS,485656,3221.2,449238720
BEIS,Met Office,2023-11-07,13 MISCELLANEOUS,CHIEF FINANCIAL OFFICER,ARTHUR J. GALLAGHER INSURANCE BROKERS LIMITED,485420,1000,GB484746209
BEIS,Met Office,2023-11-27,11 SERVICES,CHIEF FINANCIAL OFFICER,Arup,484350,-18500,524461265
BEIS,Met Office,2023-11-14,11 SERVICES,CHIEF FINANCIAL OFFICER,Arup,484329,15725,524461265
BEIS,Met Office,2023-11-27,11 SERVICES,CHIEF FINANCIAL OFFICER,Arup,483941,18500,524461265
BEIS,Met Office,2023-11-07,11 SERVICES,CHIEF FINANCIAL OFFICER,BABBLE CLOUD LIMITED,485041,508.62,GB206270049
BEIS,Met Office,2023-11-07,11 SERVICES,CHIEF FINANCIAL OFFICER,BABBLE CLOUD LIMITED,484668,1034.2,GB206270049
BEIS,Met Office,2023-11-22,13 MISCELLANEOUS,CHIEF FINANCIAL OFFICER,BANNER GROUP LIMITED,485888,5.05,GB391085740
BEIS,Met Office,2023-11-14,13 MISCELLANEOUS,CHIEF FINANCIAL OFFICER,BANNER GROUP LIMITED,485621,18.94,GB391085740
BEIS,Met Office,2023-11-14,13 MISCELLANEOUS,CHIEF FINANCIAL OFFICER,BANNER GROUP LIMITED,485622,19.12,GB391085740
BEIS,Met Office,2023-11-07,13 MISCELLANEOUS,CHIEF FINANCIAL OFFICER,BANNER GROUP LIMITED,485404,27.34,GB391085740
BEIS,Met Office,2023-11-01,13 MISCELLANEOUS,CHIEF FINANCIAL OFFICER,BANNER GROUP LIMITED,485091,39.93,GB391085740
BEIS,Met Office,2023-11-03,06 ACCOMMODATION,CHIEF FINANCIAL OFFICER,BIDVEST NOONAN UK LTD,485319,191.01,GB847176988
BEIS,Met Office,2023-11-07,06 ACCOMMODATION,CHIEF FINANCIAL OFFICER,BIDVEST NOONAN UK LTD,485398,501.58,GB847176988
BEIS,Met Office,2023-11-07,06 ACCOMMODATION,CHIEF FINANCIAL OFFICER,BIDVEST NOONAN UK LTD,485399,1111.97,GB847176988
BEIS,Met Office,2023-11-30,06 ACCOMMODATION,CHIEF FINANCIAL OFFICER,Biffa Waste Services Ltd,486112,209.65,537911627
BEIS,Met Office,2023-11-09,11 SERVICES,CHIEF FINANCIAL OFFICER,British Red Cross Society,485442,1524,706926227
BEIS,Met Office,2023-11-22,11 SERVICES,CHIEF FINANCIAL OFFICER,BT GLOBAL SERVICES,485885,4670.68,245719348
BEIS,Met Office,2023-11-22,11 SERVICES,CHIEF FINANCIAL OFFICER,BT GLOBAL SERVICES,485915,5778.86,245719348
BEIS,Met Office,2023-11-06,11 SERVICES,CHIEF FINANCIAL OFFICER,BT plc,485088,9944.36,245719348
BEIS,Met Office,2023-11-16,06 ACCOMMODATION,CHIEF FINANCIAL OFFICER,BUSINESS SUPPORT CENTRE LTD,485783,14.7,927365208
BEIS,Met Office,2023-11-03,06 ACCOMMODATION,CHIEF FINANCIAL OFFICER,BUSINESS SUPPORT CENTRE LTD,485217,80.43,927365208
BEIS,Met Office,2023-11-22,11 SERVICES,CHIEF FINANCIAL OFFICER,CABINET OFFICE - COF LEAD ACCOUNT,485871,22086,-
BEIS,Met Office,2023-11-10,06 ACCOMMODATION,CHIEF FINANCIAL OFFICER,CALOR GAS LIMITED,485478,19.61,207610984
BEIS,Met Office,2023-11-10,06 ACCOMMODATION,CHIEF FINANCIAL OFFICER,CALOR GAS LIMITED,485475,34.25,207610984
BEIS,Met Office,2023-11-10,06 ACCOMMODATION,CHIEF FINANCIAL OFFICER,CALOR GAS LIMITED,485476,34.25,207610984
BEIS,Met Office,2023-11-10,06 ACCOMMODATION,CHIEF FINANCIAL OFFICER,CALOR GAS LIMITED,485497,34.25,207610984
BEIS,Met Office,2023-11-10,06 ACCOMMODATION,CHIEF FINANCIAL OFFICER,CALOR GAS LIMITED,485498,34.25,207610984
BEIS,Met Office,2023-11-10,06 ACCOMMODATION,CHIEF FINANCIAL OFFICER,CALOR GAS LIMITED,485500,34.25,207610984
BEIS,Met Office,2023-11-10,06 ACCOMMODATION,CHIEF FINANCIAL OFFICER,CALOR GAS LIMITED,485479,49.18,207610984
BEIS,Met Office,2023-11-10,06 ACCOMMODATION,CHIEF FINANCIAL OFFICER,CALOR GAS LIMITED,485499,289.5,207610984
BEIS,Met Office,2023-11-03,06 ACCOMMODATION,CHIEF FINANCIAL OFFICER,CARDIFF EXECUTIVE CENTRE LTD,485148,2470,864497378
BEIS,Met Office,2023-11-01,06 ACCOMMODATION,CHIEF FINANCIAL OFFICER,CBRE MANAGED SERVICES LTD,485008,3146.3,853936883
BEIS,Met Office,2023-11-01,06 ACCOMMODATION,CHIEF FINANCIAL OFFICER,CBRE MANAGED SERVICES LTD,485008,3759.05,853936883
BEIS,Met Office,2023-11-16,06 ACCOMMODATION,CHIEF FINANCIAL OFFICER,CBRE MANAGED SERVICES LTD,485786,5108.91,853936883
BEIS,Met Office,2023-11-30,06 ACCOMMODATION,CHIEF FINANCIAL OFFICER,CBRE MANAGED SERVICES LTD,486140,7765.2,853936883
BEIS,Met Office,2023-11-01,06 ACCOMMODATION,CHIEF FINANCIAL OFFICER,CBRE MANAGED SERVICES LTD,485009,9621.57,853936883
BEIS,Met Office,2023-11-01,FIXTURE & FITTINGS,CHIEF FINANCIAL OFFICER,CBRE MANAGED SERVICES LTD,485007,11137.7,853936883
BEIS,Met Office,2023-11-01,06 ACCOMMODATION,CHIEF FINANCIAL OFFICER,CBRE MANAGED SERVICES LTD,485009,18040.27,853936883
BEIS,Met Office,2023-11-20,06 ACCOMMODATION,CHIEF FINANCIAL OFFICER,CBRE MANAGED SERVICES LTD,485790,21643.2,853936883
BEIS,Met Office,2023-11-30,06 ACCOMMODATION,CHIEF FINANCIAL OFFICER,CBRE MANAGED SERVICES LTD,486139,29524.89,853936883
BEIS,Met Office,2023-11-30,06 ACCOMMODATION,CHIEF FINANCIAL OFFICER,CBRE MANAGED SERVICES LTD,486136,31905.65,853936883
BEIS,Met Office,2023-11-20,06 ACCOMMODATION,CHIEF FINANCIAL OFFICER,CBRE MANAGED SERVICES LTD,485787,42986.16,853936883
BEIS,Met Office,2023-11-16,06 ACCOMMODATION,CHIEF FINANCIAL OFFICER,CBRE MANAGED SERVICES LTD,485786,47033.82,853936883
BEIS,Met Office,2023-11-16,06 ACCOMMODATION,CHIEF FINANCIAL OFFICER,CBRE MANAGED SERVICES LTD,485789,154281.85,853936883
BEIS,Met Office,2023-11-22,08 SOFTWARE LICENCES,CHIEF FINANCIAL OFFICER,CEMAR,485867,850,915042161
BEIS,Met Office,2023-11-10,13 MISCELLANEOUS,CHIEF FINANCIAL OFFICER,CULLIGAN (UK) LIMITED,485553,272.97,GB 828382407
BEIS,Met Office,2023-11-29,06 ACCOMMODATION,CHIEF FINANCIAL OFFICER,D&G OFFICE SERVICES LTD,486117,25,272997547
BEIS,Met Office,2023-11-29,06 ACCOMMODATION,CHIEF FINANCIAL OFFICER,D&G OFFICE SERVICES LTD,486117,40,272997547
BEIS,Met Office,2023-11-29,06 ACCOMMODATION,CHIEF FINANCIAL OFFICER,D&G OFFICE SERVICES LTD,486117,65,272997547
BEIS,Met Office,2023-11-29,06 ACCOMMODATION,CHIEF FINANCIAL OFFICER,D&G OFFICE SERVICES LTD,486117,166.5,272997547
BEIS,Met Office,2023-11-29,06 ACCOMMODATION,CHIEF FINANCIAL OFFICER,D&G OFFICE SERVICES LTD,486117,180,272997547
BEIS,Met Office,2023-11-29,06 ACCOMMODATION,CHIEF FINANCIAL OFFICER,D&G OFFICE SERVICES LTD,486117,225,272997547
BEIS,Met Office,2023-11-29,06 ACCOMMODATION,CHIEF FINANCIAL OFFICER,D&G OFFICE SERVICES LTD,486117,296,272997547
BEIS,Met Office,2023-11-29,06 ACCOMMODATION,CHIEF FINANCIAL OFFICER,D&G OFFICE SERVICES LTD,486117,296,272997547
BEIS,Met Office,2023-11-22,11 SERVICES,CHIEF FINANCIAL OFFICER,D&G OFFICE SERVICES LTD,485881,420.8,272997547
BEIS,Met Office,2023-11-22,11 SERVICES,CHIEF FINANCIAL OFFICER,D&G OFFICE SERVICES LTD,485877,480.6,272997547
BEIS,Met Office,2023-11-29,06 ACCOMMODATION,CHIEF FINANCIAL OFFICER,D&G OFFICE SERVICES LTD,486117,546,272997547
BEIS,Met Office,2023-11-22,06 ACCOMMODATION,CHIEF FINANCIAL OFFICER,D&G OFFICE SERVICES LTD,485917,601.75,272997547
BEIS,Met Office,2023-11-06,04 CONTRACTORS,CHIEF FINANCIAL OFFICER,DEPARTMENT FOR ENERGY SECURITY AND NET ZERO,485149,19480.74,GB888851746
BEIS,Met Office,2023-11-29,06 ACCOMMODATION,CHIEF FINANCIAL OFFICER,Devon County Council,486130,2507.6,142208113
BEIS,Met Office,2023-11-29,06 ACCOMMODATION,CHIEF FINANCIAL OFFICER,Devon County Council,486129,7363.81,142208113
BEIS,Met Office,2023-11-22,11 SERVICES,CHIEF FINANCIAL OFFICER,DWYFOR COFFEE COMPANY LTD,485874,25,559811116
BEIS,Met Office,2023-11-10,13 MISCELLANEOUS,CHIEF FINANCIAL OFFICER,DWYFOR COFFEE COMPANY LTD,484090,32.6,559811116
BEIS,Met Office,2023-11-16,06 ACCOMMODATION,CHIEF FINANCIAL OFFICER,EDF ENERGY CUSTOMERS PLC,485663,19122.83,523041202
BEIS,Met Office,2023-11-06,06 ACCOMMODATION,CHIEF FINANCIAL OFFICER,EDF ENERGY CUSTOMERS PLC,485310,202422.56,523041202
BEIS,Met Office,2023-11-06,06 ACCOMMODATION,CHIEF FINANCIAL OFFICER,EDF ENERGY CUSTOMERS PLC,485312,209164.52,523041202
BEIS,Met Office,2023-11-06,06 ACCOMMODATION,CHIEF FINANCIAL OFFICER,EDF ENERGY CUSTOMERS PLC,485311,598349.11,523041202
BEIS,Met Office,2023-11-16,11 SERVICES,CHIEF FINANCIAL OFFICER,EDSON TIGER LTD,484695,10200,166910983
BEIS,Met Office,2023-11-01,11 SERVICES,CHIEF FINANCIAL OFFICER,EIR,25358,58.96,4736919B
BEIS,Met Office,2023-11-22,11 SERVICES,CHIEF FINANCIAL OFFICER,EIR,25389,59.29,4736919B
BEIS,Met Office,2023-11-17,11 SERVICES,CHIEF FINANCIAL OFFICER,ELECTRICAL SAFETY CONSULTANTS LTD,485815,3200,-
BEIS,Met Office,2023-11-22,03 STAFF COSTS T&S,CHIEF FINANCIAL OFFICER,ENTERPRISE RENT A CAR UK LTD,485918,760.45,215557314
BEIS,Met Office,2023-11-21,03 STAFF COSTS T&S,CHIEF FINANCIAL OFFICER,ENTERPRISE RENT A CAR UK LTD,485919,2340.74,215557314
BEIS,Met Office,2023-11-14,03 STAFF COSTS T&S,CHIEF FINANCIAL OFFICER,ENTERPRISE RENT A CAR UK LTD,484815,2423.09,215557314
BEIS,Met Office,2023-11-14,03 STAFF COSTS T&S,CHIEF FINANCIAL OFFICER,ENTERPRISE RENT A CAR UK LTD,485623,2519.83,215557314
BEIS,Met Office,2023-11-14,03 STAFF COSTS T&S,CHIEF FINANCIAL OFFICER,ENTERPRISE RENT A CAR UK LTD,485047,2919.18,215557314
BEIS,Met Office,2023-11-14,03 STAFF COSTS T&S,CHIEF FINANCIAL OFFICER,ENTERPRISE RENT A CAR UK LTD,485406,2985.37,215557314
BEIS,Met Office,2023-11-14,03 STAFF COSTS T&S,CHIEF FINANCIAL OFFICER,ENTERPRISE RENT A CAR UK LTD,484657,4157.93,215557314
BEIS,Met Office,2023-11-29,03 STAFF COSTS T&S,CHIEF FINANCIAL OFFICER,ENTERPRISE RENT A CAR UK LTD,486087,4753.73,215557314
BEIS,Met Office,2023-11-27,06 ACCOMMODATION,CHIEF FINANCIAL OFFICER,Exeter City Council,479461,168960,142335594
BEIS,Met Office,2023-11-10,11 SERVICES,CHIEF FINANCIAL OFFICER,EXPONENTIAL-E,485521,350,GB798572653
BEIS,Met Office,2023-11-03,11 SERVICES,CHIEF FINANCIAL OFFICER,EXPONENTIAL-E,485204,2281.82,GB798572653
BEIS,Met Office,2023-11-02,06 ACCOMMODATION,CHIEF FINANCIAL OFFICER,FAIR ISLE ELECTRICITY COMPANY LTD,485096,106.9,774548783
BEIS,Met Office,2023-11-10,11 SERVICES,CHIEF FINANCIAL OFFICER,GAMMA TELECOM LTD,485528,259.31,823820344
BEIS,Met Office,2023-11-10,11 SERVICES,CHIEF FINANCIAL OFFICER,GAMMA TELECOM LTD,485528,570.83,823820344
BEIS,Met Office,2023-11-10,11 SERVICES,CHIEF FINANCIAL OFFICER,GAMMA TELECOM LTD,485528,27990.75,823820344
BEIS,Met Office,2023-11-13,11 SERVICES,CHIEF FINANCIAL OFFICER,GB GROUP PLC,485599,173.26,539716218
BEIS,Met Office,2023-11-13,11 SERVICES,CHIEF FINANCIAL OFFICER,GB GROUP PLC,485600,530,539716218
BEIS,Met Office,2023-11-15,11 SERVICES,CHIEF FINANCIAL OFFICER,GIBRALTAR NYNEX COMMUNICATIONS LTD,485523,660,NOVAT
BEIS,Met Office,2023-11-14,06 ACCOMMODATION,CHIEF FINANCIAL OFFICER,GRS BUILDING SERVICES SOUTH-WEST,485640,1590,-
BEIS,Met Office,2023-11-30,06 ACCOMMODATION,CHIEF FINANCIAL OFFICER,GVAV LIMITED,486125,926,770015070
BEIS,Met Office,2023-11-20,11 SERVICES,CHIEF FINANCIAL OFFICER,INTEROUTE COMMUNICATIONS LIMITED,485844,-3870.97,832 7071 39
BEIS,Met Office,2023-11-20,11 SERVICES,CHIEF FINANCIAL OFFICER,INTEROUTE COMMUNICATIONS LIMITED,484777,-1870.97,832 7071 39
BEIS,Met Office,2023-11-20,11 SERVICES,CHIEF FINANCIAL OFFICER,INTEROUTE COMMUNICATIONS LIMITED,485843,10644.15,832 7071 39
BEIS,Met Office,2023-11-20,11 SERVICES,CHIEF FINANCIAL OFFICER,INTEROUTE COMMUNICATIONS LIMITED,484776,11435.96,832 7071 39
BEIS,Met Office,2023-11-02,11 SERVICES,CHIEF FINANCIAL OFFICER,JERSEY TELECOM,483622,1293.72,NOTVATREG
BEIS,Met Office,2023-11-02,11 SERVICES,CHIEF FINANCIAL OFFICER,JERSEY TELECOM,484536,1293.72,NOTVATREG
BEIS,Met Office,2023-11-15,11 SERVICES,CHIEF FINANCIAL OFFICER,JERSEY TELECOM,485112,1333.15,NOTVATREG
BEIS,Met Office,2023-11-14,11 SERVICES,CHIEF FINANCIAL OFFICER,LEASEDRIVE RENTAL MANAGEMENT LTD,485102,1135.05,733546040
BEIS,Met Office,2023-11-22,11 SERVICES,CHIEF FINANCIAL OFFICER,LEX AUTOLEASE LTD,484923,5065.08,244155576
BEIS,Met Office,2023-11-03,11 SERVICES,CHIEF FINANCIAL OFFICER,LICENCE BUREAU LTD,485277,135.15,820219467
BEIS,Met Office,2023-11-27,11 SERVICES,CHIEF FINANCIAL OFFICER,LOGICALIS UK Limited,485999,1612.5,864475392
BEIS,Met Office,2023-11-14,11 SERVICES,CHIEF FINANCIAL OFFICER,MAWASEM LTD,484699,304231.46,197694731
BEIS,Met Office,2023-11-06,06 ACCOMMODATION,CHIEF FINANCIAL OFFICER,Mitie Landscapes Ltd,485135,10896.78,GB 416 706 654
BEIS,Met Office,2023-11-03,11 SERVICES,CHIEF FINANCIAL OFFICER,MITIE SECURITY LTD,484173,61.27,416706654
BEIS,Met Office,2023-11-03,11 SERVICES,CHIEF FINANCIAL OFFICER,MITIE SECURITY LTD,484173,302.24,416706654
BEIS,Met Office,2023-11-03,11 SERVICES,CHIEF FINANCIAL OFFICER,MITIE SECURITY LTD,484173,883.49,416706654
BEIS,Met Office,2023-11-08,11 SERVICES,CHIEF FINANCIAL OFFICER,MITIE SECURITY LTD,485173,1005.12,416706654
BEIS,Met Office,2023-11-29,11 SERVICES,CHIEF FINANCIAL OFFICER,MITIE SECURITY LTD,485546,1350.3,416706654
BEIS,Met Office,2023-11-29,11 SERVICES,CHIEF FINANCIAL OFFICER,MITIE SECURITY LTD,485545,1421,416706654
BEIS,Met Office,2023-11-01,11 SERVICES,CHIEF FINANCIAL OFFICER,Morton Fraser LLP,485097,6000,269129336
BEIS,Met Office,2023-11-07,06 ACCOMMODATION,CHIEF FINANCIAL OFFICER,MOUNT CHARLES GROUP LTD,485369,496.27,517116274
BEIS,Met Office,2023-11-21,06 ACCOMMODATION,CHIEF FINANCIAL OFFICER,NESS ENGINEERING LTD,485884,5064,430188472
BEIS,Met Office,2023-11-02,13 MISCELLANEOUS,CHIEF FINANCIAL OFFICER,NORFOLK WATER LIMITED,485209,25.3,833 6292 22
BEIS,Met Office,2023-11-08,13 MISCELLANEOUS,CHIEF FINANCIAL OFFICER,NORSCOTT VENDING SERVICES LTD,485444,20.85,751402071
BEIS,Met Office,2023-11-01,13 MISCELLANEOUS,CHIEF FINANCIAL OFFICER,NORSCOTT VENDING SERVICES LTD,485084,85,751402071
BEIS,Met Office,2023-11-01,11 SERVICES,CHIEF FINANCIAL OFFICER,OPEN TEXT UK LTD,485103,100,837871308
BEIS,Met Office,2023-11-07,11 SERVICES,CHIEF FINANCIAL OFFICER,OPEN TEXT UK LTD,485395,100,837871308
BEIS,Met Office,2023-11-28,13 MISCELLANEOUS,CHIEF FINANCIAL OFFICER,POSTURITE (UK) LTD,485892,28.55,583565114
BEIS,Met Office,2023-11-28,13 MISCELLANEOUS,CHIEF FINANCIAL OFFICER,POSTURITE (UK) LTD,485890,39.68,583565114
BEIS,Met Office,2023-11-02,13 MISCELLANEOUS,CHIEF FINANCIAL OFFICER,POSTURITE (UK) LTD,484813,47.15,583565114
BEIS,Met Office,2023-11-09,13 MISCELLANEOUS,CHIEF FINANCIAL OFFICER,POSTURITE (UK) LTD,485370,50,583565114
BEIS,Met Office,2023-11-28,13 MISCELLANEOUS,CHIEF FINANCIAL OFFICER,POSTURITE (UK) LTD,485549,50,583565114
BEIS,Met Office,2023-11-02,13 MISCELLANEOUS,CHIEF FINANCIAL OFFICER,POSTURITE (UK) LTD,484814,65.72,583565114
BEIS,Met Office,2023-11-28,13 MISCELLANEOUS,CHIEF FINANCIAL OFFICER,POSTURITE (UK) LTD,485891,65.72,583565114
BEIS,Met Office,2023-11-02,13 MISCELLANEOUS,CHIEF FINANCIAL OFFICER,POSTURITE (UK) LTD,484805,68.82,583565114
BEIS,Met Office,2023-11-28,13 MISCELLANEOUS,CHIEF FINANCIAL OFFICER,POSTURITE (UK) LTD,485821,108.53,583565114
BEIS,Met Office,2023-11-29,13 MISCELLANEOUS,CHIEF FINANCIAL OFFICER,POSTURITE (UK) LTD,486132,108.53,583565114
BEIS,Met Office,2023-11-28,13 MISCELLANEOUS,CHIEF FINANCIAL OFFICER,POSTURITE (UK) LTD,485624,681.2,583565114
BEIS,Met Office,2023-11-28,13 MISCELLANEOUS,CHIEF FINANCIAL OFFICER,POSTURITE (UK) LTD,485625,681.2,583565114
BEIS,Met Office,2023-11-02,13 MISCELLANEOUS,CHIEF FINANCIAL OFFICER,POSTURITE (UK) LTD,484926,793.22,583565114
BEIS,Met Office,2023-11-02,13 MISCELLANEOUS,CHIEF FINANCIAL OFFICER,POSTURITE (UK) LTD,484804,820.17,583565114
BEIS,Met Office,2023-11-02,13 MISCELLANEOUS,CHIEF FINANCIAL OFFICER,POSTURITE (UK) LTD,484812,851.69,583565114
BEIS,Met Office,2023-11-02,13 MISCELLANEOUS,CHIEF FINANCIAL OFFICER,POSTURITE (UK) LTD,484925,903.77,583565114
BEIS,Met Office,2023-11-02,13 MISCELLANEOUS,CHIEF FINANCIAL OFFICER,POSTURITE (UK) LTD,480582,1020.21,583565114
BEIS,Met Office,2023-11-03,06 ACCOMMODATION,CHIEF FINANCIAL OFFICER,POWER NI ENERGY LTD,485278,970.27,617518142
BEIS,Met Office,2023-11-20,06 ACCOMMODATION,CHIEF FINANCIAL OFFICER,PUBLIC SUB ACCOUNT - HMG 4806,485716,1750,888805068
BEIS,Met Office,2023-11-29,03 STAFF COSTS T&S,CHIEF FINANCIAL OFFICER,RAINBOW CITY TAXIS,486120,269.04,724295039
BEIS,Met Office,2023-11-29,11 SERVICES,CHIEF FINANCIAL OFFICER,REDACTED � PERSONAL DATA,486135,250.35,729159704
BEIS,Met Office,2023-11-15,06 ACCOMMODATION,CHIEF FINANCIAL OFFICER,REDACTED � PERSONAL DATA,485179,520,-
BEIS,Met Office,2023-11-07,06 ACCOMMODATION,CHIEF FINANCIAL OFFICER,RIVER RIDGE,485403,133.12,176286083
BEIS,Met Office,2023-11-13,06 ACCOMMODATION,CHIEF FINANCIAL OFFICER,ROYAL PARKS,485507,281.58,888845836
BEIS,Met Office,2023-11-15,11 SERVICES,CHIEF FINANCIAL OFFICER,SADDLES & PADDLES EXETER LTD,485655,1300,152264528
BEIS,Met Office,2023-11-13,06 ACCOMMODATION,CHIEF FINANCIAL OFFICER,SAFESTORE LTD,485602,3430.33,722887607
BEIS,Met Office,2023-11-22,06 ACCOMMODATION,CHIEF FINANCIAL OFFICER,Severn Trent Water Ltd,485887,249.51,486985565
BEIS,Met Office,2023-11-15,06 ACCOMMODATION,CHIEF FINANCIAL OFFICER,SHETLAND CLEANING SERVICES,485715,831.13,430028404
BEIS,Met Office,2023-11-15,13 MISCELLANEOUS,CHIEF FINANCIAL OFFICER,SIGNS EXPRESS (EXETER),485620,1684.62,631397439
BEIS,Met Office,2023-11-16,06 ACCOMMODATION,CHIEF FINANCIAL OFFICER,South West Water Ltd,485196,-205.57,236873674
BEIS,Met Office,2023-11-16,06 ACCOMMODATION,CHIEF FINANCIAL OFFICER,South West Water Ltd,485197,-176.26,236873674
BEIS,Met Office,2023-11-16,06 ACCOMMODATION,CHIEF FINANCIAL OFFICER,South West Water Ltd,485184,-172.21,236873674
BEIS,Met Office,2023-11-16,06 ACCOMMODATION,CHIEF FINANCIAL OFFICER,South West Water Ltd,485185,-151.81,236873674
BEIS,Met Office,2023-11-16,06 ACCOMMODATION,CHIEF FINANCIAL OFFICER,South West Water Ltd,485186,-151.6,236873674
BEIS,Met Office,2023-11-16,06 ACCOMMODATION,CHIEF FINANCIAL OFFICER,South West Water Ltd,485194,-84.11,236873674
BEIS,Met Office,2023-11-16,06 ACCOMMODATION,CHIEF FINANCIAL OFFICER,South West Water Ltd,485192,-80.24,236873674
BEIS,Met Office,2023-11-16,06 ACCOMMODATION,CHIEF FINANCIAL OFFICER,South West Water Ltd,485193,-77.54,236873674
BEIS,Met Office,2023-11-16,06 ACCOMMODATION,CHIEF FINANCIAL OFFICER,South West Water Ltd,485189,-73.39,236873674
BEIS,Met Office,2023-11-16,06 ACCOMMODATION,CHIEF FINANCIAL OFFICER,South West Water Ltd,485187,-70.96,236873674
BEIS,Met Office,2023-11-16,06 ACCOMMODATION,CHIEF FINANCIAL OFFICER,South West Water Ltd,485195,-67.1,236873674
BEIS,Met Office,2023-11-16,06 ACCOMMODATION,CHIEF FINANCIAL OFFICER,South West Water Ltd,485191,-63.48,236873674
BEIS,Met Office,2023-11-16,06 ACCOMMODATION,CHIEF FINANCIAL OFFICER,South West Water Ltd,485190,-63.01,236873674
BEIS,Met Office,2023-11-16,06 ACCOMMODATION,CHIEF FINANCIAL OFFICER,South West Water Ltd,485188,-54.02,236873674
BEIS,Met Office,2023-11-16,06 ACCOMMODATION,CHIEF FINANCIAL OFFICER,South West Water Ltd,485200,51.16,236873674
BEIS,Met Office,2023-11-16,06 ACCOMMODATION,CHIEF FINANCIAL OFFICER,South West Water Ltd,485198,54.02,236873674
BEIS,Met Office,2023-11-16,06 ACCOMMODATION,CHIEF FINANCIAL OFFICER,South West Water Ltd,485199,73.39,236873674
BEIS,Met Office,2023-11-16,06 ACCOMMODATION,CHIEF FINANCIAL OFFICER,South West Water Ltd,485089,215.85,236873674
BEIS,Met Office,2023-11-16,06 ACCOMMODATION,CHIEF FINANCIAL OFFICER,South West Water Ltd,485732,1088.04,236873674
BEIS,Met Office,2023-11-06,06 ACCOMMODATION,CHIEF FINANCIAL OFFICER,SSE CONTRACTING LTD,485138,945.17,382894546
BEIS,Met Office,2023-11-29,06 ACCOMMODATION,CHIEF FINANCIAL OFFICER,St. Modwen Properties Limited,486128,112.5,005489575
BEIS,Met Office,2023-11-08,PLANT AND EQUIPMENT,CHIEF FINANCIAL OFFICER,Stewart Morris Partnership Ltd,485455,9167.5,687720886
BEIS,Met Office,2023-11-10,11 SERVICES,CHIEF FINANCIAL OFFICER,SURE SOUTH ATLANTIC LTD,485514,2124.8,NOVATREG
BEIS,Met Office,2023-11-10,11 SERVICES,CHIEF FINANCIAL OFFICER,SURE SOUTH ATLANTIC LTD,485529,4801,-
BEIS,Met Office,2023-11-13,11 SERVICES,CHIEF FINANCIAL OFFICER,SURE SOUTH ATLANTIC LTD,485530,6412.19,-
BEIS,Met Office,2023-11-22,11 SERVICES,CHIEF FINANCIAL OFFICER,SURE SOUTH ATLANTIC LTD (ST HELENA),485855,1413.5,30005
BEIS,Met Office,2023-11-01,11 SERVICES,CHIEF FINANCIAL OFFICER,SWISSCOM (SCHWEIZ) AG,484420,100.91,-
BEIS,Met Office,2023-11-29,11 SERVICES,CHIEF FINANCIAL OFFICER,SWISSCOM (SCHWEIZ) AG,485556,101.4,-
BEIS,Met Office,2023-11-21,11 SERVICES,CHIEF FINANCIAL OFFICER,TELEFONICA O2 UK LIMITED,485925,-26070,778603785
BEIS,Met Office,2023-11-14,11 SERVICES,CHIEF FINANCIAL OFFICER,TELEFONICA O2 UK LIMITED,485547,4125.58,778603785
BEIS,Met Office,2023-11-21,11 SERVICES,CHIEF FINANCIAL OFFICER,TELEFONICA O2 UK LIMITED,441362,26070,778603785
BEIS,Met Office,2023-11-30,06 ACCOMMODATION,CHIEF FINANCIAL OFFICER,THE WOOLLY SHEPHERD,486173,680,111326371
BEIS,Met Office,2023-11-28,FIXTURE & FITTINGS,CHIEF FINANCIAL OFFICER,THE WOOLLY SHEPHERD,486055,20262.57,111326371
BEIS,Met Office,2023-11-09,06 ACCOMMODATION,CHIEF FINANCIAL OFFICER,THORLUX LIGHTING,485474,1186.1,GB 109 939 440
BEIS,Met Office,2023-11-07,06 ACCOMMODATION,CHIEF FINANCIAL OFFICER,TOP RANK CLEANING SERVICES LTD,485409,950.56,-
BEIS,Met Office,2023-11-20,06 ACCOMMODATION,CHIEF FINANCIAL OFFICER,TOTAL GAS & POWER LIMITED,485788,924.64,689638949
BEIS,Met Office,2023-11-16,06 ACCOMMODATION,CHIEF FINANCIAL OFFICER,TOTAL GAS & POWER LIMITED,485782,11809.67,689638949
BEIS,Met Office,2023-11-21,06 ACCOMMODATION,CHIEF FINANCIAL OFFICER,UNITED UTILITIES WATER PLC,390958,19.45,-
BEIS,Met Office,2023-11-21,11 SERVICES,CHIEF FINANCIAL OFFICER,UNITED UTILITIES WATER PLC,485923,4563.92,-
BEIS,Met Office,2023-11-03,06 ACCOMMODATION,CHIEF FINANCIAL OFFICER,UNIVERSAL CLEANING SERVICES,485275,165.72,-
BEIS,Met Office,2023-11-08,13 MISCELLANEOUS,CHIEF FINANCIAL OFFICER,University Of Reading,485441,10.2,200012659
BEIS,Met Office,2023-11-16,06 ACCOMMODATION,CHIEF FINANCIAL OFFICER,V & M MORRIS AND SON,485791,804.9,-
BEIS,Met Office,2023-11-28,11 SERVICES,CHIEF FINANCIAL OFFICER,Vodafone Limited,486064,10.21,569953277
BEIS,Met Office,2023-11-07,11 SERVICES,CHIEF FINANCIAL OFFICER,Vodafone Limited,485410,443.49,569953277
BEIS,Met Office,2023-11-01,11 SERVICES,CHIEF FINANCIAL OFFICER,WOMBLE BOND DICKINSON (UK) LLP,485105,588,GB123393627
BEIS,Met Office,2023-11-01,11 SERVICES,CHIEF FINANCIAL OFFICER,WOMBLE BOND DICKINSON (UK) LLP,485104,12750,GB123393627
BEIS,Met Office,2023-11-09,11 SERVICES,CHIEF FINANCIAL OFFICER,WT CONSULTANCY (SW) LTD,485251,3500,223 4662 25
BEIS,Met Office,2023-11-02,11 SERVICES,CHIEF FINANCIAL OFFICER,WT CONSULTANCY (SW) LTD,484185,10850,223 4662 25
BEIS,Met Office,2023-11-02,11 SERVICES,CHIEF FINANCIAL OFFICER,WT CONSULTANCY (SW) LTD,484184,13600,223 4662 25
BEIS,Met Office,2023-11-09,11 SERVICES,CHIEF FINANCIAL OFFICER,WT CONSULTANCY (SW) LTD,485250,13600,223 4662 25
BEIS,Met Office,2023-11-21,11 SERVICES,MARKETS,ACCELERATION EMARKETING,485617,6111.61,848940776
BEIS,Met Office,2023-11-03,11 SERVICES,MARKETS,ADOPSTAR,485305,1325,115036848
BEIS,Met Office,2023-11-08,12 INTERNATIONAL,MARKETS,APPLIED SATELLITE TECHNOLOGY SYSTEMS LTD,485448,34.23,720108683
BEIS,Met Office,2023-11-09,11 SERVICES,MARKETS,BJSS LIMITED,485506,906.25,613295452
BEIS,Met Office,2023-11-29,07 EQUIPMENT,MARKETS,COMPUTACENTER (UK) LTD,486048,672.1,490334648
BEIS,Met Office,2023-11-14,REVENUE,MARKETS,DEUTSCHES ZENTRUM FUER LUFT UND RAUMFAHRT EV,25378,-80341.06,DE121965658
BEIS,Met Office,2023-11-14,REVENUE,MARKETS,DEUTSCHES ZENTRUM FUER LUFT UND RAUMFAHRT EV,23240,78972.68,DE121965658
BEIS,Met Office,2023-11-13,12 INTERNATIONAL,MARKETS,ECMWF,484130,-10,NOTVATREG
BEIS,Met Office,2023-11-02,06 ACCOMMODATION,MARKETS,FORSS MANAGEMENT LIMITED,485111,-3.51,-
BEIS,Met Office,2023-11-02,06 ACCOMMODATION,MARKETS,FORSS MANAGEMENT LIMITED,485110,60.72,-
BEIS,Met Office,2023-11-02,06 ACCOMMODATION,MARKETS,FORSS MANAGEMENT LIMITED,485109,305.1,-
BEIS,Met Office,2023-11-02,12 INTERNATIONAL,MARKETS,FOXSTONES TRAINING AND LEARNING,485054,2950,-
BEIS,Met Office,2023-11-24,06 ACCOMMODATION,MARKETS,HIGHLANDS & ISLANDS AIRPORTS LTD.,486014,300,945667772
BEIS,Met Office,2023-11-24,06 ACCOMMODATION,MARKETS,HIGHLANDS & ISLANDS AIRPORTS LTD.,486015,300,945667772
BEIS,Met Office,2023-11-24,06 ACCOMMODATION,MARKETS,HIGHLANDS & ISLANDS AIRPORTS LTD.,486016,300,945667772
BEIS,Met Office,2023-11-24,06 ACCOMMODATION,MARKETS,HIGHLANDS & ISLANDS AIRPORTS LTD.,486017,300,945667772
BEIS,Met Office,2023-11-28,06 ACCOMMODATION,MARKETS,HIGHLANDS & ISLANDS AIRPORTS LTD.,486027,300,945667772
BEIS,Met Office,2023-11-03,11 SERVICES,MARKETS,INMARSAT SOLUTIONS (CANADA) INC,485269,1851.66,766144223
BEIS,Met Office,2023-11-24,11 SERVICES,MARKETS,JCT Ltd,485937,4508.4,714 3761 44
BEIS,Met Office,2023-11-13,11 SERVICES,MARKETS,LHR BUSINESS SUPPORT CENTRE LTD,485407,19.22,927365404
BEIS,Met Office,2023-11-08,12 INTERNATIONAL,MARKETS,MACITECHSY SOLUTIONS,485169,1480,-
BEIS,Met Office,2023-11-08,11 SERVICES,MARKETS,MADE TECH,485368,5000,938565184
BEIS,Met Office,2023-11-22,11 SERVICES,MARKETS,MCENIES GLOBAL COMMUNICATIONS LIMITED,485812,1936.99,18980736-0001
BEIS,Met Office,2023-11-02,12 INTERNATIONAL,MARKETS,MYACORN LTD,484770,45803,-
BEIS,Met Office,2023-11-03,11 SERVICES,MARKETS,National Oceanography Centre,485317,12230.76,GB 338 5487 64
BEIS,Met Office,2023-11-15,11 SERVICES,MARKETS,NSSL GLOBAL LTD,11255,45.21,725151948
BEIS,Met Office,2023-11-28,06 ACCOMMODATION,MARKETS,REDACTED � PERSONAL DATA,486030,72,GB 268954011
BEIS,Met Office,2023-11-28,06 ACCOMMODATION,MARKETS,REDACTED � PERSONAL DATA,486030,500,GB 268954011
BEIS,Met Office,2023-11-01,12 INTERNATIONAL,MARKETS,REDACTED � PERSONAL DATA,11258,2216.96,-
BEIS,Met Office,2023-11-01,12 INTERNATIONAL,MARKETS,REDACTED � PERSONAL DATA,11258,2997,-
BEIS,Met Office,2023-11-29,06 ACCOMMODATION,MARKETS,Royal National Lifeboat Institution,486133,180,-
BEIS,Met Office,2023-11-29,06 ACCOMMODATION,MARKETS,Royal National Lifeboat Institution,486133,12000,-
BEIS,Met Office,2023-11-24,11 SERVICES,MARKETS,RUSSELL DIGITAL CONSULTANCY LIMITED,486032,9000,N/A
BEIS,Met Office,2023-11-09,11 SERVICES,MARKETS,SPOKE (INTERACTIVE) LTD,485318,770,840156451
BEIS,Met Office,2023-11-29,12 INTERNATIONAL,MARKETS,SPREP,11291,40815.96,-
BEIS,Met Office,2023-11-03,11 SERVICES,MARKETS,University Of Strathclyde,461813,-24202.25,GB261339762
BEIS,Met Office,2023-11-13,11 SERVICES,MARKETS,WORLDPAY (UK) LTD,485510,413.9,991280207
BEIS,Met Office,2023-11-02,11 SERVICES,MARKETS,WORLDPAY LTD,485223,26.15,991280207
BEIS,Met Office,2023-11-30,11 SERVICES,MARKETS,YOUGOV PLC,486089,7150,991228109
BEIS,Met Office,2023-11-23,11 SERVICES,OFFICE OF THE CEO,EXETER RUGBY CLUB LTD,486011,740.63,918551313
BEIS,Met Office,2023-11-01,11 SERVICES,OFFICE OF THE CEO,MAZARS LLP,485095,4520,839835673
BEIS,Met Office,2023-11-06,11 SERVICES,OFFICE OF THE CEO,MAZARS LLP,485372,6200,839835673
BEIS,Met Office,2023-11-15,11 SERVICES,OFFICE OF THE CEO,THE STRENGTHS PEOPLE LTD,485745,2975,206868488
BEIS,Met Office,2023-11-16,PAYE AND VAT,OTHER,DHL INTERNATIONAL (UK) LTD,460494,-751.4,751812341
BEIS,Met Office,2023-11-16,PAYE AND VAT,OTHER,DHL INTERNATIONAL (UK) LTD,469657,52.82,751812341
BEIS,Met Office,2023-11-16,PAYE AND VAT,OTHER,DHL INTERNATIONAL (UK) LTD,464838,80,751812341
BEIS,Met Office,2023-11-16,PAYE AND VAT,OTHER,DHL INTERNATIONAL (UK) LTD,463088,280.79,751812341
BEIS,Met Office,2023-11-10,CYCLESCHEME,OTHER,EDENRED UK (CYCLESCHEME),485520,8731.95,649 503 520
BEIS,Met Office,2023-11-21,TRADE CREDITORS,OTHER,NATWEST COMMERCIAL CARDS DIVISION,485854,197671.38,N/A
BEIS,Met Office,2023-11-14,11 SERVICES,OTHER,WAB E.V,25379,-349.18,224506414
BEIS,Met Office,2023-11-14,11 SERVICES,OTHER,WAB E.V,23364,341.3,224506414
BEIS,Met Office,2023-11-15,11 SERVICES,PEOPLE,ACTIVE LEARNING TEAM LTD,485746,1400,-
BEIS,Met Office,2023-11-09,13 MISCELLANEOUS,PEOPLE,BROADBEAN TECHNOLOGY LTD,484231,2202.75,GB184088778
BEIS,Met Office,2023-11-02,08 SOFTWARE LICENCES,PEOPLE,CATALYST IT,485172,2270.82,978169262
BEIS,Met Office,2023-11-15,08 SOFTWARE LICENCES,PEOPLE,CIPHR,477810,-214860,242661124
BEIS,Met Office,2023-11-15,08 SOFTWARE LICENCES,PEOPLE,CIPHR,477513,214860,242661124
BEIS,Met Office,2023-11-14,11 SERVICES,PEOPLE,CIVICA UK LIMITED,485618,4668.23,391171065
BEIS,Met Office,2023-11-07,13 MISCELLANEOUS,PEOPLE,EDENRED - CHILDCARE VOUCHERS,485373,8399.5,649 503 520
BEIS,Met Office,2023-11-02,13 MISCELLANEOUS,PEOPLE,EDENRED I&M (IRS VOUCHERS),485171,102,649 503 520
BEIS,Met Office,2023-11-02,13 MISCELLANEOUS,PEOPLE,EDENRED I&M (IRS VOUCHERS),485170,64902.6,649 503 520
BEIS,Met Office,2023-11-28,11 SERVICES,PEOPLE,Exeter College,485936,3750,125451632
BEIS,Met Office,2023-11-08,11 SERVICES,PEOPLE,HEALTH ASSURED LIMITED,485458,1120,927 5242 17
BEIS,Met Office,2023-11-02,08 SOFTWARE LICENCES,PEOPLE,KORN FERRY HAY GROUP LTD,485094,5814,GB 539135439
BEIS,Met Office,2023-11-02,04 CONTRACTORS,PEOPLE,MATRIX SCM LIMITED,485222,208565.54,249 5734 68
BEIS,Met Office,2023-11-23,04 CONTRACTORS,PEOPLE,MATRIX SCM LIMITED,486019,235229.72,249 5734 68
BEIS,Met Office,2023-11-10,11 SERVICES,PEOPLE,REDACTED � PERSONAL DATA,485550,825,143043312
BEIS,Met Office,2023-11-10,11 SERVICES,PEOPLE,REDACTED � PERSONAL DATA,485551,825,143043312
BEIS,Met Office,2023-11-09,11 SERVICES,PEOPLE,RESTORE RECORDS MANAGEMENT,485461,13.89,843 863011
BEIS,Met Office,2023-11-29,11 SERVICES,PEOPLE,RESULTS CATALYSTS LTD,486105,1367.41,811 9181 42
BEIS,Met Office,2023-11-03,11 SERVICES,PEOPLE,SPACE FOR LEARNING LTD,485073,500,GB 212 8531 33
BEIS,Met Office,2023-11-06,11 SERVICES,PEOPLE,SPOCE,484472,-7160,619 8641 07
BEIS,Met Office,2023-11-06,11 SERVICES,PEOPLE,SPOCE,480000,7160,619 8641 07
BEIS,Met Office,2023-11-06,11 SERVICES,PEOPLE,SPOCE,484330,12415,619 8641 07
BEIS,Met Office,2023-11-29,11 SERVICES,PEOPLE,THE ACTEON CONSULTANCY LLP,486033,12320,599460874
BEIS,Met Office,2023-11-06,11 SERVICES,PEOPLE,TOWERS WATSON LIMITED,485214,5163.9,334128970
BEIS,Met Office,2023-11-07,11 SERVICES,PEOPLE,TP HEALTH LTD,485219,1237,883064608
BEIS,Met Office,2023-11-22,11 SERVICES,PEOPLE,TP HEALTH LTD,485846,4056,883064608
BEIS,Met Office,2023-11-08,13 MISCELLANEOUS,PEOPLE,YOTI LTD,485402,15.3,GB199947617
BEIS,Met Office,2023-11-08,11 SERVICES,PEOPLE,YOUGOV PLC,485364,4530,991228109
BEIS,Met Office,2023-11-14,11 SERVICES,PROGRAMMES,BAE SYSTEMS APPLIED INTELLIGENCE LIMITED,485641,507.78,GB641407169
BEIS,Met Office,2023-11-15,11 SERVICES,PROGRAMMES,BAE SYSTEMS APPLIED INTELLIGENCE LIMITED,485642,827.94,GB641407169
BEIS,Met Office,2023-11-14,11 SERVICES,PROGRAMMES,BAE SYSTEMS APPLIED INTELLIGENCE LIMITED,485647,1575,GB641407169
BEIS,Met Office,2023-11-14,11 SERVICES,PROGRAMMES,BAE SYSTEMS APPLIED INTELLIGENCE LIMITED,485647,1723.25,GB641407169
BEIS,Met Office,2023-11-23,11 SERVICES,PROGRAMMES,BAE SYSTEMS APPLIED INTELLIGENCE LIMITED,485895,3277,GB641407169
BEIS,Met Office,2023-11-02,11 SERVICES,PROGRAMMES,BAE SYSTEMS APPLIED INTELLIGENCE LIMITED,485235,6097,GB641407169
BEIS,Met Office,2023-11-14,11 SERVICES,PROGRAMMES,BAE SYSTEMS APPLIED INTELLIGENCE LIMITED,485647,6448.75,GB641407169
BEIS,Met Office,2023-11-14,11 SERVICES,PROGRAMMES,BAE SYSTEMS APPLIED INTELLIGENCE LIMITED,485647,7504,GB641407169
BEIS,Met Office,2023-11-02,11 SERVICES,PROGRAMMES,BAE SYSTEMS APPLIED INTELLIGENCE LIMITED,485235,8141,GB641407169
BEIS,Met Office,2023-11-02,11 SERVICES,PROGRAMMES,BAE SYSTEMS APPLIED INTELLIGENCE LIMITED,485235,8141,GB641407169
BEIS,Met Office,2023-11-15,11 SERVICES,PROGRAMMES,BAE SYSTEMS APPLIED INTELLIGENCE LIMITED,485666,9518.25,GB641407169
BEIS,Met Office,2023-11-02,11 SERVICES,PROGRAMMES,BAE SYSTEMS APPLIED INTELLIGENCE LIMITED,485235,9956.25,GB641407169
BEIS,Met Office,2023-11-14,11 SERVICES,PROGRAMMES,BAE SYSTEMS APPLIED INTELLIGENCE LIMITED,485648,11220,GB641407169
BEIS,Met Office,2023-11-14,11 SERVICES,PROGRAMMES,BAE SYSTEMS APPLIED INTELLIGENCE LIMITED,485651,11902,GB641407169
BEIS,Met Office,2023-11-14,11 SERVICES,PROGRAMMES,BAE SYSTEMS APPLIED INTELLIGENCE LIMITED,485647,15946,GB641407169
BEIS,Met Office,2023-11-14,11 SERVICES,PROGRAMMES,BAE SYSTEMS APPLIED INTELLIGENCE LIMITED,485643,18760,GB641407169
BEIS,Met Office,2023-11-14,11 SERVICES,PROGRAMMES,BAE SYSTEMS APPLIED INTELLIGENCE LIMITED,485647,18994.5,GB641407169
BEIS,Met Office,2023-11-14,11 SERVICES,PROGRAMMES,BAE SYSTEMS APPLIED INTELLIGENCE LIMITED,485652,19698,GB641407169
BEIS,Met Office,2023-11-02,11 SERVICES,PROGRAMMES,BAE SYSTEMS APPLIED INTELLIGENCE LIMITED,485235,20636,GB641407169
BEIS,Met Office,2023-11-02,11 SERVICES,PROGRAMMES,BAE SYSTEMS APPLIED INTELLIGENCE LIMITED,485235,20636,GB641407169
BEIS,Met Office,2023-11-02,11 SERVICES,PROGRAMMES,BAE SYSTEMS APPLIED INTELLIGENCE LIMITED,485235,20636,GB641407169
BEIS,Met Office,2023-11-14,11 SERVICES,PROGRAMMES,BAE SYSTEMS APPLIED INTELLIGENCE LIMITED,485647,20636,GB641407169
BEIS,Met Office,2023-11-14,11 SERVICES,PROGRAMMES,BAE SYSTEMS APPLIED INTELLIGENCE LIMITED,485649,20636,GB641407169
BEIS,Met Office,2023-11-02,11 SERVICES,PROGRAMMES,BAE SYSTEMS APPLIED INTELLIGENCE LIMITED,485235,22512,GB641407169
BEIS,Met Office,2023-11-02,11 SERVICES,PROGRAMMES,BAE SYSTEMS APPLIED INTELLIGENCE LIMITED,485235,22512,GB641407169
BEIS,Met Office,2023-11-03,11 SERVICES,PROGRAMMES,BAE SYSTEMS APPLIED INTELLIGENCE LIMITED,485265,22512,GB641407169
BEIS,Met Office,2023-11-14,11 SERVICES,PROGRAMMES,BAE SYSTEMS APPLIED INTELLIGENCE LIMITED,485647,23450,GB641407169
BEIS,Met Office,2023-11-14,11 SERVICES,PROGRAMMES,BAE SYSTEMS APPLIED INTELLIGENCE LIMITED,485647,25586,GB641407169
BEIS,Met Office,2023-11-14,11 SERVICES,PROGRAMMES,BAE SYSTEMS APPLIED INTELLIGENCE LIMITED,485647,25586,GB641407169
BEIS,Met Office,2023-11-14,11 SERVICES,PROGRAMMES,BAE SYSTEMS APPLIED INTELLIGENCE LIMITED,485650,25586,GB641407169
BEIS,Met Office,2023-11-15,11 SERVICES,PROGRAMMES,BAE SYSTEMS APPLIED INTELLIGENCE LIMITED,485645,25856.58,GB641407169
BEIS,Met Office,2023-11-14,11 SERVICES,PROGRAMMES,BAE SYSTEMS APPLIED INTELLIGENCE LIMITED,485646,26828,GB641407169
BEIS,Met Office,2023-11-02,11 SERVICES,PROGRAMMES,BAE SYSTEMS APPLIED INTELLIGENCE LIMITED,485235,27912,GB641407169
BEIS,Met Office,2023-11-03,11 SERVICES,PROGRAMMES,BITPOD LIMITED,485268,8018.37,124 9359 03
BEIS,Met Office,2023-11-10,11 SERVICES,PROGRAMMES,BJSS LIMITED,485509,4375,613295452
BEIS,Met Office,2023-11-10,11 SERVICES,PROGRAMMES,BJSS LIMITED,485501,20625,613295452
BEIS,Met Office,2023-11-10,11 SERVICES,PROGRAMMES,BJSS LIMITED,485508,32525,613295452
BEIS,Met Office,2023-11-10,11 SERVICES,PROGRAMMES,BJSS LIMITED,485477,80825,613295452
BEIS,Met Office,2023-11-10,11 SERVICES,PROGRAMMES,BJSS LIMITED,485524,84952.5,613295452
BEIS,Met Office,2023-11-10,11 SERVICES,PROGRAMMES,BJSS LIMITED,485512,94400,613295452
BEIS,Met Office,2023-11-07,11 SERVICES,PROGRAMMES,CABINET OFFICE - COF LEAD ACCOUNT,485090,9870,-
BEIS,Met Office,2023-11-13,11 SERVICES,PROGRAMMES,Cgi It Uk Limited,485472,28588,232615194
BEIS,Met Office,2023-11-13,11 SERVICES,PROGRAMMES,Cgi It Uk Limited,485471,37693,232615194
BEIS,Met Office,2023-11-13,11 SERVICES,PROGRAMMES,Cgi It Uk Limited,485473,79239,232615194
BEIS,Met Office,2023-11-01,INFORMATION TECHNOLOGY,PROGRAMMES,CPI SAT ORBITAL SYSTEMS,11219,4212.81,-
BEIS,Met Office,2023-11-01,INFORMATION TECHNOLOGY,PROGRAMMES,CPI SAT ORBITAL SYSTEMS,11219,5978.5,-
BEIS,Met Office,2023-11-15,INFORMATION TECHNOLOGY,PROGRAMMES,CPI SAT ORBITAL SYSTEMS,11220,14042.71,-
BEIS,Met Office,2023-11-15,INFORMATION TECHNOLOGY,PROGRAMMES,CPI SAT ORBITAL SYSTEMS,11220,19928.33,-
BEIS,Met Office,2023-11-01,PLANT AND EQUIPMENT,PROGRAMMES,CPI SAT ORBITAL SYSTEMS,11219,33690.51,-
BEIS,Met Office,2023-11-15,PLANT AND EQUIPMENT,PROGRAMMES,CPI SAT ORBITAL SYSTEMS,11220,112301.7,-
BEIS,Met Office,2023-11-13,03 STAFF COSTS T&S,PROGRAMMES,ECMWF,485554,484.7,NOTVATREG
BEIS,Met Office,2023-11-27,11 SERVICES,PROGRAMMES,FCDO,486010,583.88,888813560
BEIS,Met Office,2023-11-02,11 SERVICES,PROGRAMMES,Hr Wallingford Ltd,485177,63625,570039752
BEIS,Met Office,2023-11-22,11 SERVICES,PROGRAMMES,"IBL SOFTWARE ENGINEERING, SPOL S.R.O.",484870,228224,SK2020241883
BEIS,Met Office,2023-11-28,11 SERVICES,PROGRAMMES,Ibm United Kingdom Ltd,485038,413249.55,107328000
BEIS,Met Office,2023-11-23,13 MISCELLANEOUS,PROGRAMMES,JOHN WILEY & SONS LTD,486013,1768.92,376766987
BEIS,Met Office,2023-11-29,11 SERVICES,PROGRAMMES,"K F LEWIN CONSULTING, LLC",11266,3846.2,-
BEIS,Met Office,2023-11-15,11 SERVICES,PROGRAMMES,"K F LEWIN CONSULTING, LLC",11203,14255.6,-
BEIS,Met Office,2023-11-29,11 SERVICES,PROGRAMMES,"K F LEWIN CONSULTING, LLC",11265,16712.51,-
BEIS,Met Office,2023-11-08,11 SERVICES,PROGRAMMES,LAFOSSE ASSOCIATES,485459,7926,GB 360026537
BEIS,Met Office,2023-11-08,11 SERVICES,PROGRAMMES,NIGER MET SERVICES - convert to USD,485306,2000,-
BEIS,Met Office,2023-11-22,PLANT AND EQUIPMENT,PROGRAMMES,PZ&W LTD,485883,26719,684 6795 68
BEIS,Met Office,2023-11-23,11 SERVICES,PROGRAMMES,RAINMAKER SOLUTIONS LTD,485563,789.33,-
BEIS,Met Office,2023-11-23,11 SERVICES,PROGRAMMES,RAINMAKER SOLUTIONS LTD,485563,12300,-
BEIS,Met Office,2023-11-20,11 SERVICES,PROGRAMMES,Red Oak Consulting LLP,485845,16480,807766990
BEIS,Met Office,2023-11-02,11 SERVICES,PROGRAMMES,Red Oak Consulting LLP,485174,25750,807766990
BEIS,Met Office,2023-11-14,11 SERVICES,PROGRAMMES,RESURGENCE URBAN RESILIENCE TRUST,485276,-106473,259524184
BEIS,Met Office,2023-11-14,11 SERVICES,PROGRAMMES,RESURGENCE URBAN RESILIENCE TRUST,485601,77195.54,259524184
BEIS,Met Office,2023-11-14,11 SERVICES,PROGRAMMES,RESURGENCE URBAN RESILIENCE TRUST,484816,106473,259524184
BEIS,Met Office,2023-11-17,11 SERVICES,PROGRAMMES,ROWE IT LTD,485813,8224.3,924964394
BEIS,Met Office,2023-11-08,11 SERVICES,PROGRAMMES,ROWE IT LTD,485456,17022.09,924964394
BEIS,Met Office,2023-11-17,11 SERVICES,PROGRAMMES,ROWE IT LTD,485813,18093.46,924964394
BEIS,Met Office,2023-11-17,11 SERVICES,PROGRAMMES,ROWE IT LTD,485813,18093.46,924964394
BEIS,Met Office,2023-11-17,11 SERVICES,PROGRAMMES,ROWE IT LTD,485813,52635.51,924964394
BEIS,Met Office,2023-11-17,11 SERVICES,PROGRAMMES,ROWE IT LTD,485813,67439.26,924964394
BEIS,Met Office,2023-11-15,11 SERVICES,PROGRAMMES,ROWE IT LTD,485659,103606.25,924964394
BEIS,Met Office,2023-11-01,11 SERVICES,PROGRAMMES,SERVICENOW UK LTD.,485108,729,-
BEIS,Met Office,2023-11-06,11 SERVICES,PROGRAMMES,SOUTH AFRICAN WEATHER SERVICES,485367,32500,-
BEIS,Met Office,2023-11-22,13 MISCELLANEOUS,PROGRAMMES,SPRINGER NATURE LIMITED,485945,1871,199440621
BEIS,Met Office,2023-11-29,11 SERVICES,PROGRAMMES,UCAR INCOMING PAYMENTS,11284,3619.64,-
BEIS,Met Office,2023-11-29,11 SERVICES,PROGRAMMES,UCAR INCOMING PAYMENTS,11256,13774.42,-
BEIS,Met Office,2023-11-17,11 SERVICES,PROGRAMMES,UK ATOMIC ENERGY AUTHORITY,485706,-141069,GB570101391
BEIS,Met Office,2023-11-17,11 SERVICES,PROGRAMMES,UK ATOMIC ENERGY AUTHORITY,485705,-81000,GB570101391
BEIS,Met Office,2023-11-17,11 SERVICES,PROGRAMMES,UK ATOMIC ENERGY AUTHORITY,485689,-7689.92,GB570101391
BEIS,Met Office,2023-11-17,11 SERVICES,PROGRAMMES,UK ATOMIC ENERGY AUTHORITY,485694,-5000,GB570101391
BEIS,Met Office,2023-11-17,11 SERVICES,PROGRAMMES,UK ATOMIC ENERGY AUTHORITY,485700,-1512.6,GB570101391
BEIS,Met Office,2023-11-17,11 SERVICES,PROGRAMMES,UK ATOMIC ENERGY AUTHORITY,485693,-174.75,GB570101391
BEIS,Met Office,2023-11-17,11 SERVICES,PROGRAMMES,UK ATOMIC ENERGY AUTHORITY,485741,-37,GB570101391
BEIS,Met Office,2023-11-17,11 SERVICES,PROGRAMMES,UK ATOMIC ENERGY AUTHORITY,485696,26.15,GB570101391
BEIS,Met Office,2023-11-17,11 SERVICES,PROGRAMMES,UK ATOMIC ENERGY AUTHORITY,485710,5075,GB570101391
BEIS,Met Office,2023-11-17,11 SERVICES,PROGRAMMES,UK ATOMIC ENERGY AUTHORITY,485711,5075,GB570101391
BEIS,Met Office,2023-11-17,11 SERVICES,PROGRAMMES,UK ATOMIC ENERGY AUTHORITY,485690,6703.63,GB570101391
BEIS,Met Office,2023-11-17,11 SERVICES,PROGRAMMES,UK ATOMIC ENERGY AUTHORITY,485695,6961.33,GB570101391
BEIS,Met Office,2023-11-17,11 SERVICES,PROGRAMMES,UK ATOMIC ENERGY AUTHORITY,485708,6961.33,GB570101391
BEIS,Met Office,2023-11-17,11 SERVICES,PROGRAMMES,UK ATOMIC ENERGY AUTHORITY,485691,7939,GB570101391
BEIS,Met Office,2023-11-17,11 SERVICES,PROGRAMMES,UK ATOMIC ENERGY AUTHORITY,485699,8150.25,GB570101391
BEIS,Met Office,2023-11-17,11 SERVICES,PROGRAMMES,UK ATOMIC ENERGY AUTHORITY,485698,10186,GB570101391
BEIS,Met Office,2023-11-17,11 SERVICES,PROGRAMMES,UK ATOMIC ENERGY AUTHORITY,485687,12411.93,GB570101391
BEIS,Met Office,2023-11-17,11 SERVICES,PROGRAMMES,UK ATOMIC ENERGY AUTHORITY,485686,13458.6,GB570101391
BEIS,Met Office,2023-11-17,11 SERVICES,PROGRAMMES,UK ATOMIC ENERGY AUTHORITY,485685,13981.94,GB570101391
BEIS,Met Office,2023-11-17,11 SERVICES,PROGRAMMES,UK ATOMIC ENERGY AUTHORITY,485712,18152,GB570101391
BEIS,Met Office,2023-11-17,11 SERVICES,PROGRAMMES,UK ATOMIC ENERGY AUTHORITY,485714,18152,GB570101391
BEIS,Met Office,2023-11-17,11 SERVICES,PROGRAMMES,UK ATOMIC ENERGY AUTHORITY,485703,18769,GB570101391
BEIS,Met Office,2023-11-17,11 SERVICES,PROGRAMMES,UK ATOMIC ENERGY AUTHORITY,485692,19625.03,GB570101391
BEIS,Met Office,2023-11-17,11 SERVICES,PROGRAMMES,UK ATOMIC ENERGY AUTHORITY,485707,22441.65,GB570101391
BEIS,Met Office,2023-11-17,11 SERVICES,PROGRAMMES,UK ATOMIC ENERGY AUTHORITY,485701,24319,GB570101391
BEIS,Met Office,2023-11-17,11 SERVICES,PROGRAMMES,UK ATOMIC ENERGY AUTHORITY,485697,25465,GB570101391
BEIS,Met Office,2023-11-17,11 SERVICES,PROGRAMMES,UK ATOMIC ENERGY AUTHORITY,485713,28888.25,GB570101391
BEIS,Met Office,2023-11-17,11 SERVICES,PROGRAMMES,UK ATOMIC ENERGY AUTHORITY,485688,37557.64,GB570101391
BEIS,Met Office,2023-11-17,11 SERVICES,PROGRAMMES,UK ATOMIC ENERGY AUTHORITY,485702,40007,GB570101391
BEIS,Met Office,2023-11-17,11 SERVICES,PROGRAMMES,UK ATOMIC ENERGY AUTHORITY,485704,51540.08,GB570101391
BEIS,Met Office,2023-11-17,11 SERVICES,PROGRAMMES,UK ATOMIC ENERGY AUTHORITY,485709,107805.23,GB570101391
BEIS,Met Office,2023-11-07,11 SERVICES,PROGRAMMES,University College London,485396,33057.9,524371168
BEIS,Met Office,2023-11-07,11 SERVICES,PROGRAMMES,University College London,485396,35966.27,524371168
BEIS,Met Office,2023-11-30,11 SERVICES,PROGRAMMES,University Of Exeter,486046,49249.25,142047795
BEIS,Met Office,2023-11-10,11 SERVICES,PROGRAMMES,University Of Leeds,485440,12500,613451470
BEIS,Met Office,2023-11-29,11 SERVICES,PROGRAMMES,University Of Leeds,486058,73793.32,613451470
BEIS,Met Office,2023-11-07,11 SERVICES,PROGRAMMES,University Of Leeds,485401,257868.87,613451470
BEIS,Met Office,2023-11-21,11 SERVICES,PROGRAMMES,University Of Oxford,485898,70000,125506730
BEIS,Met Office,2023-11-24,11 SERVICES,PROGRAMMES,University Of Reading,485942,-73965.6,200012659
BEIS,Met Office,2023-11-01,11 SERVICES,PROGRAMMES,University Of Reading,485071,72592.66,200012659
BEIS,Met Office,2023-11-07,11 SERVICES,PROGRAMMES,University Of Reading,485080,73965.6,200012659
BEIS,Met Office,2023-11-24,11 SERVICES,PROGRAMMES,University Of Reading,485943,75690.6,200012659
BEIS,Met Office,2023-11-07,11 SERVICES,PROGRAMMES,University Of Reading,485079,107861.49,200012659
BEIS,Met Office,2023-11-14,11 SERVICES,PROGRAMMES,WARWICK ECONOMICS & DEVELOPMENT LTD.,485613,-45100,116732721
BEIS,Met Office,2023-11-15,11 SERVICES,PROGRAMMES,WARWICK ECONOMICS & DEVELOPMENT LTD.,484661,-3000,116732721
BEIS,Met Office,2023-11-15,11 SERVICES,PROGRAMMES,WARWICK ECONOMICS & DEVELOPMENT LTD.,484662,3000,116732721
BEIS,Met Office,2023-11-14,11 SERVICES,PROGRAMMES,WARWICK ECONOMICS & DEVELOPMENT LTD.,484444,45100,116732721
BEIS,Met Office,2023-11-15,11 SERVICES,PROGRAMMES,WARWICK ECONOMICS & DEVELOPMENT LTD.,485614,48100,116732721
BEIS,Met Office,2023-11-03,11 SERVICES,SCIENCE,Esri (Uk) Ltd,485220,3509.47,787430791
BEIS,Met Office,2023-11-23,13 MISCELLANEOUS,SCIENCE,JOHN WILEY & SONS LTD,485841,-2550,376766987
BEIS,Met Office,2023-11-23,13 MISCELLANEOUS,SCIENCE,JOHN WILEY & SONS LTD,465716,2550,376766987
BEIS,Met Office,2023-11-23,13 MISCELLANEOUS,SCIENCE,JOHN WILEY & SONS LTD,486013,15925,376766987
BEIS,Met Office,2023-11-28,11 SERVICES,SCIENCE,LAUGHING PHOENIX LTD,486054,3000,989 4469 37
BEIS,Met Office,2023-11-01,11 SERVICES,SCIENCE,PRIMARY SCIENCE TEACHING TRUST,25353,21863.2,-
BEIS,Met Office,2023-11-22,08 SOFTWARE LICENCES,SCIENCE,PTC Inc,11299,3603.68,-
BEIS,Met Office,2023-11-29,11 SERVICES,SCIENCE,Rsk Adas Ltd,486123,17500,256435886
BEIS,Met Office,2023-11-22,13 MISCELLANEOUS,SCIENCE,SPRINGER NATURE LIMITED,485945,16835,199440621
BEIS,Met Office,2023-11-22,07 EQUIPMENT,SCIENCE,SURREY NANOSYSTEMS LTD,485511,4470,-
BEIS,Met Office,2023-11-22,11 SERVICES,SCIENCE,THE PRIORY ROOMS MEETING & CONFERENCE CENTRE,485964,1880,860351638
BEIS,Met Office,2023-11-10,13 MISCELLANEOUS,SCIENCE,University Of Bristol,484873,-1000,991261800
BEIS,Met Office,2023-11-10,13 MISCELLANEOUS,SCIENCE,University Of Bristol,485548,850,991261800
BEIS,Met Office,2023-11-10,13 MISCELLANEOUS,SCIENCE,University Of Bristol,484826,1000,991261800
BEIS,Met Office,2023-11-30,13 MISCELLANEOUS,SCIENCE,University Of Exeter,485941,-1000,142047795
BEIS,Met Office,2023-11-30,13 MISCELLANEOUS,SCIENCE,University Of Exeter,484852,1000,142047795
BEIS,Met Office,2023-11-03,13 MISCELLANEOUS,SCIENCE,University Of Leeds,485032,1000,613451470
BEIS,Met Office,2023-11-01,13 MISCELLANEOUS,SCIENCE,University Of Leeds,485098,1000,613451470
BEIS,Met Office,2023-11-01,13 MISCELLANEOUS,SCIENCE,University Of Leeds,485099,1000,613451470
BEIS,Met Office,2023-11-01,13 MISCELLANEOUS,SCIENCE,University Of Leeds,485100,1000,613451470
BEIS,Met Office,2023-11-01,13 MISCELLANEOUS,SCIENCE,University Of Leeds,485101,1000,613451470
BEIS,Met Office,2023-11-01,13 MISCELLANEOUS,SCIENCE,University Of Leeds,485106,1000,613451470
BEIS,Met Office,2023-11-23,11 SERVICES,SCIENCE,University Of Leeds,485847,3587.49,613451470
BEIS,Met Office,2023-11-06,11 SERVICES,SCIENCE,University Of Leeds,485365,50000,613451470
BEIS,Met Office,2023-11-06,11 SERVICES,SCIENCE,University Of Reading,484845,178,200012659
BEIS,Met Office,2023-11-22,13 MISCELLANEOUS,SCIENCE,University Of Reading,485878,300,200012659
BEIS,Met Office,2023-11-06,11 SERVICES,SCIENCE,University Of Reading,484844,360.5,200012659
BEIS,Met Office,2023-11-22,13 MISCELLANEOUS,SCIENCE,University Of Reading,485879,400,200012659
BEIS,Met Office,2023-11-22,13 MISCELLANEOUS,SCIENCE,University Of Reading,485872,500,200012659
BEIS,Met Office,2023-11-06,11 SERVICES,SCIENCE,University Of Reading,484846,1000,200012659
BEIS,Met Office,2023-11-22,13 MISCELLANEOUS,SCIENCE,University Of Reading,485866,1000,200012659
BEIS,Met Office,2023-11-22,13 MISCELLANEOUS,SCIENCE,University Of Reading,485868,1000,200012659
BEIS,Met Office,2023-11-22,13 MISCELLANEOUS,SCIENCE,University Of Reading,485869,1000,200012659
BEIS,Met Office,2023-11-06,11 SERVICES,SCIENCE,University Of Reading,484847,1178,200012659
BEIS,Met Office,2023-11-07,11 SERVICES,SCIENCE,University Of Reading,485400,1643.46,200012659
BEIS,Met Office,2023-11-06,11 SERVICES,SERVICES,ADAM PHONES LTD,485376,85.5,538877093
BEIS,Met Office,2023-11-06,11 SERVICES,SERVICES,ADAM PHONES LTD,485377,88.35,538877093
BEIS,Met Office,2023-11-22,03 STAFF COSTS T&S,SERVICES,AIRPORT CAR RENTALS LTD,485870,478,-
BEIS,Met Office,2023-11-09,11 SERVICES,SERVICES,APPLIED SATELLITE TECHNOLOGY SYSTEMS LTD,485449,34.23,720108683
BEIS,Met Office,2023-11-09,11 SERVICES,SERVICES,APPLIED SATELLITE TECHNOLOGY SYSTEMS LTD,485452,34.23,720108683
BEIS,Met Office,2023-11-09,11 SERVICES,SERVICES,APPLIED SATELLITE TECHNOLOGY SYSTEMS LTD,485453,89.48,720108683
BEIS,Met Office,2023-11-09,11 SERVICES,SERVICES,APPLIED SATELLITE TECHNOLOGY SYSTEMS LTD,485450,150.46,720108683
BEIS,Met Office,2023-11-09,11 SERVICES,SERVICES,APPLIED SATELLITE TECHNOLOGY SYSTEMS LTD,485451,420.38,720108683
BEIS,Met Office,2023-11-15,11 SERVICES,SERVICES,APPLIED SATELLITE TECHNOLOGY SYSTEMS LTD,485454,3223.35,720108683
BEIS,Met Office,2023-11-08,11 SERVICES,SERVICES,BENTLEY TELECOM LTD (was Bentley Walker),485408,525,107995930
BEIS,Met Office,2023-11-28,11 SERVICES,SERVICES,Boc Ltd,486053,-125.65,226556555
BEIS,Met Office,2023-11-28,11 SERVICES,SERVICES,Boc Ltd,485207,19215.81,226556555
BEIS,Met Office,2023-11-21,03 STAFF COSTS T&S,SERVICES,CHARLIE'S TRAVEL LTD,485873,156.53,783848277
BEIS,Met Office,2023-11-03,03 STAFF COSTS T&S,SERVICES,CHARLIE'S TRAVEL LTD,485248,182.5,783848277
BEIS,Met Office,2023-11-22,03 STAFF COSTS T&S,SERVICES,CHARLIE'S TRAVEL LTD,485938,255.31,783848277
BEIS,Met Office,2023-11-03,03 STAFF COSTS T&S,SERVICES,CHARLIE'S TRAVEL LTD,485248,1208.62,783848277
BEIS,Met Office,2023-11-03,03 STAFF COSTS T&S,SERVICES,CHARLIE'S TRAVEL LTD,485248,1299.46,783848277
BEIS,Met Office,2023-11-16,10 EQUIPMENT MAINTENANCE,SERVICES,CIMEL ELECTRONIQUE,25385,-996.04,FR89662017201
BEIS,Met Office,2023-11-16,10 EQUIPMENT MAINTENANCE,SERVICES,CIMEL ELECTRONIQUE,23253,957.91,FR89662017201
BEIS,Met Office,2023-11-14,11 SERVICES,SERVICES,CLOUDREACH EUROPE LIMITED,485658,7300,978187168
BEIS,Met Office,2023-11-21,03 STAFF COSTS T&S,SERVICES,DBS FINANCE RECEIPTS CTS,485532,8833,888805068
BEIS,Met Office,2023-11-01,13 MISCELLANEOUS,SERVICES,DEMSTAR BUSINESS SOLUTIONS LTD,25327,74.48,10156145J
BEIS,Met Office,2023-11-29,13 MISCELLANEOUS,SERVICES,DEMSTAR BUSINESS SOLUTIONS LTD,25364,92.51,10156145J
BEIS,Met Office,2023-11-16,11 SERVICES,SERVICES,DHL INTERNATIONAL (UK) LTD,427614,-991.32,751812341
BEIS,Met Office,2023-11-16,11 SERVICES,SERVICES,DHL INTERNATIONAL (UK) LTD,460494,-18.79,751812341
BEIS,Met Office,2023-11-16,11 SERVICES,SERVICES,DHL INTERNATIONAL (UK) LTD,461859,-11,751812341
BEIS,Met Office,2023-11-16,11 SERVICES,SERVICES,DHL INTERNATIONAL (UK) LTD,458203,11,751812341
BEIS,Met Office,2023-11-16,11 SERVICES,SERVICES,DHL INTERNATIONAL (UK) LTD,463088,11,751812341
BEIS,Met Office,2023-11-16,11 SERVICES,SERVICES,DHL INTERNATIONAL (UK) LTD,469657,11,751812341
BEIS,Met Office,2023-11-16,11 SERVICES,SERVICES,DHL INTERNATIONAL (UK) LTD,470643,11,751812341
BEIS,Met Office,2023-11-16,11 SERVICES,SERVICES,DHL INTERNATIONAL (UK) LTD,474770,11,751812341
BEIS,Met Office,2023-11-16,11 SERVICES,SERVICES,DHL INTERNATIONAL (UK) LTD,461858,15.5,751812341
BEIS,Met Office,2023-11-16,11 SERVICES,SERVICES,DHL INTERNATIONAL (UK) LTD,471205,25,751812341
BEIS,Met Office,2023-11-16,PAYE AND VAT,SERVICES,DHL INTERNATIONAL (UK) LTD,458203,61.58,751812341
BEIS,Met Office,2023-11-16,11 SERVICES,SERVICES,DHL INTERNATIONAL (UK) LTD,485827,925.61,751812341
BEIS,Met Office,2023-11-22,11 SERVICES,SERVICES,EAST RIDING OF YORKSHIRE COUNCIL IHA,485956,1687.4,647471123
BEIS,Met Office,2023-11-08,08 SOFTWARE LICENCES,SERVICES,ELASTICSEARCH LTD,485264,10147.85,155790484
BEIS,Met Office,2023-11-03,03 STAFF COSTS T&S,SERVICES,FALKLAND ISLAND COMPANY LTD,485307,700,N/A
BEIS,Met Office,2023-11-03,03 STAFF COSTS T&S,SERVICES,FALKLAND ISLAND COMPANY LTD,485308,700,N/A
BEIS,Met Office,2023-11-03,03 STAFF COSTS T&S,SERVICES,FALKLAND ISLAND COMPANY LTD,485309,700,N/A
BEIS,Met Office,2023-11-29,13 MISCELLANEOUS,SERVICES,Finnish Meteorological Institute,24150,-12.08,FI02446647
BEIS,Met Office,2023-11-29,11 SERVICES,SERVICES,Finnish Meteorological Institute,25359,2438.24,FI02446647
BEIS,Met Office,2023-11-29,PLANT AND EQUIPMENT,SERVICES,FLUKE UK LTD,442024,-860,625938805
BEIS,Met Office,2023-11-14,11 SERVICES,SERVICES,GAMMA TELECOM LTD,485531,4418.25,823820344
BEIS,Met Office,2023-11-27,11 SERVICES,SERVICES,GROUND CONTROL UK TECHNOLOGIES LTD,486001,86.81,GB277698137
BEIS,Met Office,2023-11-27,11 SERVICES,SERVICES,GROUND CONTROL UK TECHNOLOGIES LTD,486001,236.58,GB277698137
BEIS,Met Office,2023-11-27,11 SERVICES,SERVICES,GROUND CONTROL UK TECHNOLOGIES LTD,486001,241.28,GB277698137
BEIS,Met Office,2023-11-27,11 SERVICES,SERVICES,GROUND CONTROL UK TECHNOLOGIES LTD,486001,690,GB277698137
BEIS,Met Office,2023-11-27,11 SERVICES,SERVICES,GROUND CONTROL UK TECHNOLOGIES LTD,486001,1338.22,GB277698137
BEIS,Met Office,2023-11-27,11 SERVICES,SERVICES,GROUND CONTROL UK TECHNOLOGIES LTD,486001,1625.84,GB277698137
BEIS,Met Office,2023-11-27,11 SERVICES,SERVICES,GROUND CONTROL UK TECHNOLOGIES LTD,486001,4140.1,GB277698137
BEIS,Met Office,2023-11-22,STOCK,SERVICES,H & B SENSORS LTD,485604,0,321828666
BEIS,Met Office,2023-11-22,11 SERVICES,SERVICES,H & B SENSORS LTD,485604,30,321828666
BEIS,Met Office,2023-11-22,TRADE CREDITORS,SERVICES,H & B SENSORS LTD,485604,8872,321828666
BEIS,Met Office,2023-11-13,03 STAFF COSTS T&S,SERVICES,HCR LTD,485559,1754.5,733 7205 46
BEIS,Met Office,2023-11-13,03 STAFF COSTS T&S,SERVICES,HCR LTD,485562,3440,733 7205 46
BEIS,Met Office,2023-11-15,03 STAFF COSTS T&S,SERVICES,HCR LTD,485564,4592.31,733 7205 46
BEIS,Met Office,2023-11-15,03 STAFF COSTS T&S,SERVICES,HCR LTD,485561,13715.72,733 7205 46
BEIS,Met Office,2023-11-15,03 STAFF COSTS T&S,SERVICES,HCR LTD,485560,16446,733 7205 46
BEIS,Met Office,2023-11-03,11 SERVICES,SERVICES,HITACHI CAPITAL VEHICLE SOLUTIONS,485274,1045.38,GB 823 8248 22
BEIS,Met Office,2023-11-09,13 MISCELLANEOUS,SERVICES,IMAGETEK SYSTEMS LTD,485446,337.7,GB586331424
BEIS,Met Office,2023-11-01,13 MISCELLANEOUS,SERVICES,IMAGETEK SYSTEMS LTD,485114,462.2,GB586331424
BEIS,Met Office,2023-11-03,11 SERVICES,SERVICES,INMARSAT SOLUTIONS (CANADA) INC,485271,45.42,766144223
BEIS,Met Office,2023-11-03,11 SERVICES,SERVICES,INMARSAT SOLUTIONS (CANADA) INC,485272,45.42,766144223
BEIS,Met Office,2023-11-03,11 SERVICES,SERVICES,INMARSAT SOLUTIONS (CANADA) INC,485270,90.84,766144223
BEIS,Met Office,2023-11-23,13 MISCELLANEOUS,SERVICES,JOHN WILEY & SONS LTD,486013,9527,376766987
BEIS,Met Office,2023-11-13,11 SERVICES,SERVICES,MADE TECH,485522,266347.32,938565184
BEIS,Met Office,2023-11-01,07 EQUIPMENT,SERVICES,METOCEAN TELEMATICS LTD,11235,21.26,-
BEIS,Met Office,2023-11-29,07 EQUIPMENT,SERVICES,METOCEAN TELEMATICS LTD,11279,22.46,-
BEIS,Met Office,2023-11-08,11 SERVICES,SERVICES,MIRRHA LIMITED,485374,500,-
BEIS,Met Office,2023-11-15,11 SERVICES,SERVICES,NETATMO,22790,-58760.35,FR43532501848
BEIS,Met Office,2023-11-15,11 SERVICES,SERVICES,NETATMO,22638,59003.71,FR43532501848
BEIS,Met Office,2023-11-15,11 SERVICES,SERVICES,NORWEGIAN METEOROLOGICAL INST,24434,-22605.55,NO971274042MVA
BEIS,Met Office,2023-11-15,11 SERVICES,SERVICES,NORWEGIAN METEOROLOGICAL INST,24419,22340.4,NO971274042MVA
BEIS,Met Office,2023-11-29,11 SERVICES,SERVICES,NSSL GLOBAL LTD,11254,57.54,725151948
BEIS,Met Office,2023-11-29,11 SERVICES,SERVICES,NSSL GLOBAL LTD,11253,73.98,725151948
BEIS,Met Office,2023-11-16,STOCK,SERVICES,PROJEXE ENGINEERING,485215,0,-
BEIS,Met Office,2023-11-16,TRADE CREDITORS,SERVICES,PROJEXE ENGINEERING,485215,5175,-
BEIS,Met Office,2023-11-13,08 SOFTWARE LICENCES,SERVICES,PTC Inc,11285,-200.73,-
BEIS,Met Office,2023-11-13,08 SOFTWARE LICENCES,SERVICES,PTC Inc,10012,186.16,-
BEIS,Met Office,2023-11-22,08 SOFTWARE LICENCES,SERVICES,PTC Inc,11299,10811.04,-
BEIS,Met Office,2023-11-01,10 EQUIPMENT MAINTENANCE,SERVICES,RAISE TELECOMS LTD,485046,21983,166016521
BEIS,Met Office,2023-11-15,13 MISCELLANEOUS,SERVICES,REDACTED � PERSONAL DATA,485733,2795,NOTVATREG
BEIS,Met Office,2023-11-17,11 SERVICES,SERVICES,SKYGUARD LTD T/A PEOPLESAFE,485735,782.01,285808854
BEIS,Met Office,2023-11-07,11 SERVICES,SERVICES,SOFTWIRE TECHNOLOGY LIMITED,485366,4200,752 1253 57
BEIS,Met Office,2023-11-03,11 SERVICES,SERVICES,SOUTH EAST LANDBASED TRAINING LLP,485150,900,383352293
BEIS,Met Office,2023-11-02,10 EQUIPMENT MAINTENANCE,SERVICES,SOUTHAMPTON MARINE SERVICES,485178,135,322078037
BEIS,Met Office,2023-11-22,13 MISCELLANEOUS,SERVICES,SPRINGER NATURE LIMITED,485945,10072,199440621
BEIS,Met Office,2023-11-29,13 MISCELLANEOUS,SERVICES,ST CROSS ELECTRONICS,486009,18,330158101
BEIS,Met Office,2023-11-29,07 EQUIPMENT,SERVICES,ST CROSS ELECTRONICS,486009,2852.8,330158101
BEIS,Met Office,2023-11-17,03 STAFF COSTS T&S,SERVICES,STORAGE FACTORY,485820,185,130 5237 12
BEIS,Met Office,2023-11-08,07 EQUIPMENT,SERVICES,SWALE TECHNOLOGIES LTD,11245,3408.33,530846451
BEIS,Met Office,2023-11-29,STOCK,SERVICES,TOTEX CORPORATION,484658,0,-
BEIS,Met Office,2023-11-29,STOCK,SERVICES,TOTEX CORPORATION,484658,0,-
BEIS,Met Office,2023-11-29,STOCK,SERVICES,TOTEX CORPORATION,484658,0,-
BEIS,Met Office,2023-11-29,STOCK,SERVICES,TOTEX CORPORATION,484658,0,-
BEIS,Met Office,2023-11-29,STOCK,SERVICES,TOTEX CORPORATION,484658,0,-
BEIS,Met Office,2023-11-29,STOCK,SERVICES,TOTEX CORPORATION,484658,0,-
BEIS,Met Office,2023-11-29,STOCK,SERVICES,TOTEX CORPORATION,484658,0,-
BEIS,Met Office,2023-11-29,STOCK,SERVICES,TOTEX CORPORATION,484658,0,-
BEIS,Met Office,2023-11-29,STOCK,SERVICES,TOTEX CORPORATION,484658,0,-
BEIS,Met Office,2023-11-29,TRADE CREDITORS,SERVICES,TOTEX CORPORATION,484658,367.5,-
BEIS,Met Office,2023-11-29,TRADE CREDITORS,SERVICES,TOTEX CORPORATION,484658,640,-
BEIS,Met Office,2023-11-29,TRADE CREDITORS,SERVICES,TOTEX CORPORATION,484658,680,-
BEIS,Met Office,2023-11-29,TRADE CREDITORS,SERVICES,TOTEX CORPORATION,484658,1638,-
BEIS,Met Office,2023-11-29,TRADE CREDITORS,SERVICES,TOTEX CORPORATION,484658,4800,-
BEIS,Met Office,2023-11-29,TRADE CREDITORS,SERVICES,TOTEX CORPORATION,484658,7128,-
BEIS,Met Office,2023-11-29,TRADE CREDITORS,SERVICES,TOTEX CORPORATION,484658,8013.6,-
BEIS,Met Office,2023-11-29,TRADE CREDITORS,SERVICES,TOTEX CORPORATION,484658,10118.4,-
BEIS,Met Office,2023-11-29,TRADE CREDITORS,SERVICES,TOTEX CORPORATION,484658,18111.6,-
BEIS,Met Office,2023-11-13,11 SERVICES,SERVICES,UK TELEMATICS LIMITED,485603,243.85,GB763051643
BEIS,Met Office,2023-11-10,07 EQUIPMENT,SERVICES,UKPOWERTECH,485513,14.5,GB756124336
BEIS,Met Office,2023-11-10,07 EQUIPMENT,SERVICES,UKPOWERTECH,485513,50,GB756124336
BEIS,Met Office,2023-11-10,07 EQUIPMENT,SERVICES,UKPOWERTECH,485513,632,GB756124336
BEIS,Met Office,2023-11-08,11 SERVICES,SERVICES,University Of Exeter,485445,4633.2,142047795
BEIS,Met Office,2023-11-29,11 SERVICES,SERVICES,VOLKSWAGEN GROUP LEASING,486099,131.05,BG745963883
BEIS,Met Office,2023-11-29,11 SERVICES,SERVICES,VOLKSWAGEN GROUP LEASING,486101,134.61,BG745963883
BEIS,Met Office,2023-11-29,11 SERVICES,SERVICES,VOLKSWAGEN GROUP LEASING,486102,134.77,BG745963883
BEIS,Met Office,2023-11-29,11 SERVICES,SERVICES,VOLKSWAGEN GROUP LEASING,486103,155.15,BG745963883
BEIS,Met Office,2023-11-30,11 SERVICES,SERVICES,VOLKSWAGEN GROUP LEASING,486095,160.02,BG745963883
BEIS,Met Office,2023-11-29,11 SERVICES,SERVICES,VOLKSWAGEN GROUP LEASING,486090,195.57,BG745963883
BEIS,Met Office,2023-11-30,11 SERVICES,SERVICES,VOLKSWAGEN GROUP LEASING,486092,199.82,BG745963883
BEIS,Met Office,2023-11-30,11 SERVICES,SERVICES,VOLKSWAGEN GROUP LEASING,486096,213.27,BG745963883
BEIS,Met Office,2023-11-29,11 SERVICES,SERVICES,VOLKSWAGEN GROUP LEASING,486100,230.85,BG745963883
BEIS,Met Office,2023-11-29,11 SERVICES,SERVICES,VOLKSWAGEN GROUP LEASING,486098,248.12,BG745963883
BEIS,Met Office,2023-11-30,11 SERVICES,SERVICES,VOLKSWAGEN GROUP LEASING,486097,260.26,BG745963883
BEIS,Met Office,2023-11-29,11 SERVICES,SERVICES,VOLKSWAGEN GROUP LEASING,486094,260.65,BG745963883
BEIS,Met Office,2023-11-30,11 SERVICES,SERVICES,VOLKSWAGEN GROUP LEASING,486091,289.9,BG745963883
BEIS,Met Office,2023-11-30,11 SERVICES,SERVICES,VOLKSWAGEN GROUP LEASING,486093,290.06,BG745963883
BEIS,Met Office,2023-11-22,STOCK,SERVICES,VWR INTERNATIONAL LTD,485889,0,823853225
BEIS,Met Office,2023-11-15,STOCK,SERVICES,VWR INTERNATIONAL LTD,485536,0.48,823853225
BEIS,Met Office,2023-11-15,TRADE CREDITORS,SERVICES,VWR INTERNATIONAL LTD,485536,18.51,823853225
BEIS,Met Office,2023-11-15,11 SERVICES,SERVICES,VWR INTERNATIONAL LTD,485536,25,823853225
BEIS,Met Office,2023-11-22,TRADE CREDITORS,SERVICES,VWR INTERNATIONAL LTD,485889,297.51,823853225
BEIS,Met Office,2023-11-21,13 MISCELLANEOUS,SERVICES,YOUNG CALIBRATION LIMITED,485876,15,673900720
BEIS,Met Office,2023-11-21,10 EQUIPMENT MAINTENANCE,SERVICES,YOUNG CALIBRATION LIMITED,485876,4200,673900720
BEIS,Met Office,2023-11-07,11 SERVICES,TECHNOLOGY AND CIO,AKAMAI TECHNOLOGIES LTD,485405,4937.28,745091237
BEIS,Met Office,2023-11-07,11 SERVICES,TECHNOLOGY AND CIO,AKAMAI TECHNOLOGIES LTD,485405,25920.75,745091237
BEIS,Met Office,2023-11-29,11 SERVICES,TECHNOLOGY AND CIO,AMAZON WEB SERVICES EMEA SARL,11283,-4813.48,GB 283644382
BEIS,Met Office,2023-11-09,11 SERVICES,TECHNOLOGY AND CIO,AMAZON WEB SERVICES EMEA SARL,11280,-0.82,GB 283644382
BEIS,Met Office,2023-11-09,11 SERVICES,TECHNOLOGY AND CIO,AMAZON WEB SERVICES EMEA SARL,11281,-0.54,GB 283644382
BEIS,Met Office,2023-11-09,11 SERVICES,TECHNOLOGY AND CIO,AMAZON WEB SERVICES EMEA SARL,10907,0.54,GB 283644382
BEIS,Met Office,2023-11-09,11 SERVICES,TECHNOLOGY AND CIO,AMAZON WEB SERVICES EMEA SARL,10945,0.81,GB 283644382
BEIS,Met Office,2023-11-29,11 SERVICES,TECHNOLOGY AND CIO,AMAZON WEB SERVICES EMEA SARL,11264,404.66,GB 283644382
BEIS,Met Office,2023-11-01,11 SERVICES,TECHNOLOGY AND CIO,AMAZON WEB SERVICES EMEA SARL,11227,424.98,GB 283644382
BEIS,Met Office,2023-11-01,11 SERVICES,TECHNOLOGY AND CIO,AMAZON WEB SERVICES EMEA SARL,11230,919.78,GB 283644382
BEIS,Met Office,2023-11-29,11 SERVICES,TECHNOLOGY AND CIO,AMAZON WEB SERVICES EMEA SARL,11267,309255.3,GB 283644382
BEIS,Met Office,2023-11-01,11 SERVICES,TECHNOLOGY AND CIO,AMAZON WEB SERVICES EMEA SARL,11228,310166.41,GB 283644382
BEIS,Met Office,2023-11-30,11 SERVICES,TECHNOLOGY AND CIO,BAE SYSTEMS APPLIED INTELLIGENCE LIMITED,485907,1163,GB641407169
BEIS,Met Office,2023-11-17,11 SERVICES,TECHNOLOGY AND CIO,BAE SYSTEMS APPLIED INTELLIGENCE LIMITED,485681,5857.5,GB641407169
BEIS,Met Office,2023-11-17,11 SERVICES,TECHNOLOGY AND CIO,BAE SYSTEMS APPLIED INTELLIGENCE LIMITED,485742,6492,GB641407169
BEIS,Met Office,2023-11-21,11 SERVICES,TECHNOLOGY AND CIO,BAE SYSTEMS APPLIED INTELLIGENCE LIMITED,485785,6750,GB641407169
BEIS,Met Office,2023-11-30,11 SERVICES,TECHNOLOGY AND CIO,BAE SYSTEMS APPLIED INTELLIGENCE LIMITED,485913,7200,GB641407169
BEIS,Met Office,2023-11-30,11 SERVICES,TECHNOLOGY AND CIO,BAE SYSTEMS APPLIED INTELLIGENCE LIMITED,486004,7650,GB641407169
BEIS,Met Office,2023-11-17,11 SERVICES,TECHNOLOGY AND CIO,BAE SYSTEMS APPLIED INTELLIGENCE LIMITED,485680,8325,GB641407169
BEIS,Met Office,2023-11-30,11 SERVICES,TECHNOLOGY AND CIO,BAE SYSTEMS APPLIED INTELLIGENCE LIMITED,485901,8381.25,GB641407169
BEIS,Met Office,2023-11-21,11 SERVICES,TECHNOLOGY AND CIO,BAE SYSTEMS APPLIED INTELLIGENCE LIMITED,485784,8437.5,GB641407169
BEIS,Met Office,2023-11-17,11 SERVICES,TECHNOLOGY AND CIO,BAE SYSTEMS APPLIED INTELLIGENCE LIMITED,485677,8550,GB641407169
BEIS,Met Office,2023-11-30,11 SERVICES,TECHNOLOGY AND CIO,BAE SYSTEMS APPLIED INTELLIGENCE LIMITED,486002,8550,GB641407169
BEIS,Met Office,2023-11-30,11 SERVICES,TECHNOLOGY AND CIO,BAE SYSTEMS APPLIED INTELLIGENCE LIMITED,485908,8676.5,GB641407169
BEIS,Met Office,2023-11-30,11 SERVICES,TECHNOLOGY AND CIO,BAE SYSTEMS APPLIED INTELLIGENCE LIMITED,485896,8926.5,GB641407169
BEIS,Met Office,2023-11-30,11 SERVICES,TECHNOLOGY AND CIO,BAE SYSTEMS APPLIED INTELLIGENCE LIMITED,485904,9000,GB641407169
BEIS,Met Office,2023-11-30,11 SERVICES,TECHNOLOGY AND CIO,BAE SYSTEMS APPLIED INTELLIGENCE LIMITED,486008,9000,GB641407169
BEIS,Met Office,2023-11-17,11 SERVICES,TECHNOLOGY AND CIO,BAE SYSTEMS APPLIED INTELLIGENCE LIMITED,485679,9240,GB641407169
BEIS,Met Office,2023-11-30,11 SERVICES,TECHNOLOGY AND CIO,BAE SYSTEMS APPLIED INTELLIGENCE LIMITED,485900,9240,GB641407169
BEIS,Met Office,2023-11-17,11 SERVICES,TECHNOLOGY AND CIO,BAE SYSTEMS APPLIED INTELLIGENCE LIMITED,485670,9380,GB641407169
BEIS,Met Office,2023-11-30,11 SERVICES,TECHNOLOGY AND CIO,BAE SYSTEMS APPLIED INTELLIGENCE LIMITED,486005,9467.5,GB641407169
BEIS,Met Office,2023-11-17,11 SERVICES,TECHNOLOGY AND CIO,BAE SYSTEMS APPLIED INTELLIGENCE LIMITED,485739,9562.5,GB641407169
BEIS,Met Office,2023-11-17,11 SERVICES,TECHNOLOGY AND CIO,BAE SYSTEMS APPLIED INTELLIGENCE LIMITED,485669,9614.5,GB641407169
BEIS,Met Office,2023-11-30,11 SERVICES,TECHNOLOGY AND CIO,BAE SYSTEMS APPLIED INTELLIGENCE LIMITED,486003,9900,GB641407169
BEIS,Met Office,2023-11-17,11 SERVICES,TECHNOLOGY AND CIO,BAE SYSTEMS APPLIED INTELLIGENCE LIMITED,485682,10012.5,GB641407169
BEIS,Met Office,2023-11-30,11 SERVICES,TECHNOLOGY AND CIO,BAE SYSTEMS APPLIED INTELLIGENCE LIMITED,485912,10279,GB641407169
BEIS,Met Office,2023-11-30,11 SERVICES,TECHNOLOGY AND CIO,BAE SYSTEMS APPLIED INTELLIGENCE LIMITED,486006,10279,GB641407169
BEIS,Met Office,2023-11-17,11 SERVICES,TECHNOLOGY AND CIO,BAE SYSTEMS APPLIED INTELLIGENCE LIMITED,485672,10684.75,GB641407169
BEIS,Met Office,2023-11-17,11 SERVICES,TECHNOLOGY AND CIO,BAE SYSTEMS APPLIED INTELLIGENCE LIMITED,485668,11361,GB641407169
BEIS,Met Office,2023-11-17,11 SERVICES,TECHNOLOGY AND CIO,BAE SYSTEMS APPLIED INTELLIGENCE LIMITED,485744,11490.5,GB641407169
BEIS,Met Office,2023-11-17,11 SERVICES,TECHNOLOGY AND CIO,BAE SYSTEMS APPLIED INTELLIGENCE LIMITED,485678,11549.88,GB641407169
BEIS,Met Office,2023-11-17,11 SERVICES,TECHNOLOGY AND CIO,BAE SYSTEMS APPLIED INTELLIGENCE LIMITED,485738,11880,GB641407169
BEIS,Met Office,2023-11-30,11 SERVICES,TECHNOLOGY AND CIO,BAE SYSTEMS APPLIED INTELLIGENCE LIMITED,485905,11880,GB641407169
BEIS,Met Office,2023-11-17,11 SERVICES,TECHNOLOGY AND CIO,BAE SYSTEMS APPLIED INTELLIGENCE LIMITED,485683,11902,GB641407169
BEIS,Met Office,2023-11-17,11 SERVICES,TECHNOLOGY AND CIO,BAE SYSTEMS APPLIED INTELLIGENCE LIMITED,485671,12194,GB641407169
BEIS,Met Office,2023-11-23,11 SERVICES,TECHNOLOGY AND CIO,BAE SYSTEMS APPLIED INTELLIGENCE LIMITED,485740,12540,GB641407169
BEIS,Met Office,2023-11-30,11 SERVICES,TECHNOLOGY AND CIO,BAE SYSTEMS APPLIED INTELLIGENCE LIMITED,485911,13132,GB641407169
BEIS,Met Office,2023-11-30,11 SERVICES,TECHNOLOGY AND CIO,BAE SYSTEMS APPLIED INTELLIGENCE LIMITED,485897,13200,GB641407169
BEIS,Met Office,2023-11-30,11 SERVICES,TECHNOLOGY AND CIO,BAE SYSTEMS APPLIED INTELLIGENCE LIMITED,485906,13200,GB641407169
BEIS,Met Office,2023-11-17,11 SERVICES,TECHNOLOGY AND CIO,BAE SYSTEMS APPLIED INTELLIGENCE LIMITED,485676,13860,GB641407169
BEIS,Met Office,2023-11-17,11 SERVICES,TECHNOLOGY AND CIO,BAE SYSTEMS APPLIED INTELLIGENCE LIMITED,485667,14190,GB641407169
BEIS,Met Office,2023-11-17,11 SERVICES,TECHNOLOGY AND CIO,BAE SYSTEMS APPLIED INTELLIGENCE LIMITED,485737,15180,GB641407169
BEIS,Met Office,2023-11-17,11 SERVICES,TECHNOLOGY AND CIO,BAE SYSTEMS APPLIED INTELLIGENCE LIMITED,485675,15300,GB641407169
BEIS,Met Office,2023-11-30,11 SERVICES,TECHNOLOGY AND CIO,BAE SYSTEMS APPLIED INTELLIGENCE LIMITED,485914,15477,GB641407169
BEIS,Met Office,2023-11-30,11 SERVICES,TECHNOLOGY AND CIO,BAE SYSTEMS APPLIED INTELLIGENCE LIMITED,485902,17000,GB641407169
BEIS,Met Office,2023-11-30,11 SERVICES,TECHNOLOGY AND CIO,BAE SYSTEMS APPLIED INTELLIGENCE LIMITED,485903,17822,GB641407169
BEIS,Met Office,2023-11-30,11 SERVICES,TECHNOLOGY AND CIO,BAE SYSTEMS APPLIED INTELLIGENCE LIMITED,485909,17822,GB641407169
BEIS,Met Office,2023-11-30,11 SERVICES,TECHNOLOGY AND CIO,BAE SYSTEMS APPLIED INTELLIGENCE LIMITED,486007,18758.74,GB641407169
BEIS,Met Office,2023-11-22,11 SERVICES,TECHNOLOGY AND CIO,BAE SYSTEMS APPLIED INTELLIGENCE LIMITED,485644,18760,GB641407169
BEIS,Met Office,2023-11-30,11 SERVICES,TECHNOLOGY AND CIO,BAE SYSTEMS APPLIED INTELLIGENCE LIMITED,485910,18760,GB641407169
BEIS,Met Office,2023-11-17,11 SERVICES,TECHNOLOGY AND CIO,BAE SYSTEMS APPLIED INTELLIGENCE LIMITED,485673,19815.25,GB641407169
BEIS,Met Office,2023-11-17,11 SERVICES,TECHNOLOGY AND CIO,BAE SYSTEMS APPLIED INTELLIGENCE LIMITED,485674,20401.5,GB641407169
BEIS,Met Office,2023-11-23,11 SERVICES,TECHNOLOGY AND CIO,BAE SYSTEMS APPLIED INTELLIGENCE LIMITED,485743,22510.49,GB641407169
BEIS,Met Office,2023-11-17,11 SERVICES,TECHNOLOGY AND CIO,BAE SYSTEMS APPLIED INTELLIGENCE LIMITED,485736,22512,GB641407169
BEIS,Met Office,2023-11-15,11 SERVICES,TECHNOLOGY AND CIO,BJSS LIMITED,485619,20362.5,613295452
BEIS,Met Office,2023-11-09,11 SERVICES,TECHNOLOGY AND CIO,BJSS LIMITED,485505,66083.5,613295452
BEIS,Met Office,2023-11-08,11 SERVICES,TECHNOLOGY AND CIO,BJSS LIMITED,485447,68023.5,613295452
BEIS,Met Office,2023-11-21,08 SOFTWARE LICENCES,TECHNOLOGY AND CIO,BOXXE,485957,-300,734245248
BEIS,Met Office,2023-11-21,08 SOFTWARE LICENCES,TECHNOLOGY AND CIO,BOXXE,454142,300,734245248
BEIS,Met Office,2023-11-16,08 SOFTWARE LICENCES,TECHNOLOGY AND CIO,BOXXE,485665,22857.9,734245248
BEIS,Met Office,2023-11-22,07 EQUIPMENT,TECHNOLOGY AND CIO,CABINET OFFICE - COF LEAD ACCOUNT,477949,-19700,-
BEIS,Met Office,2023-11-22,11 SERVICES,TECHNOLOGY AND CIO,CABINET OFFICE - COF LEAD ACCOUNT,477949,-16000,-
BEIS,Met Office,2023-11-22,08 SOFTWARE LICENCES,TECHNOLOGY AND CIO,CABINET OFFICE - COF LEAD ACCOUNT,477949,-7710,-
BEIS,Met Office,2023-11-22,07 EQUIPMENT,TECHNOLOGY AND CIO,CABINET OFFICE - COF LEAD ACCOUNT,477949,-2600,-
BEIS,Met Office,2023-11-22,07 EQUIPMENT,TECHNOLOGY AND CIO,CABINET OFFICE - COF LEAD ACCOUNT,477949,-2500,-
BEIS,Met Office,2023-11-22,10 EQUIPMENT MAINTENANCE,TECHNOLOGY AND CIO,CABINET OFFICE - COF LEAD ACCOUNT,477949,-600,-
BEIS,Met Office,2023-11-22,10 EQUIPMENT MAINTENANCE,TECHNOLOGY AND CIO,CABINET OFFICE - COF LEAD ACCOUNT,477949,-500,-
BEIS,Met Office,2023-11-22,08 SOFTWARE LICENCES,TECHNOLOGY AND CIO,CABINET OFFICE - COF LEAD ACCOUNT,477949,-425,-
BEIS,Met Office,2023-11-22,08 SOFTWARE LICENCES,TECHNOLOGY AND CIO,CABINET OFFICE - COF LEAD ACCOUNT,477505,425,-
BEIS,Met Office,2023-11-22,10 EQUIPMENT MAINTENANCE,TECHNOLOGY AND CIO,CABINET OFFICE - COF LEAD ACCOUNT,477505,500,-
BEIS,Met Office,2023-11-22,10 EQUIPMENT MAINTENANCE,TECHNOLOGY AND CIO,CABINET OFFICE - COF LEAD ACCOUNT,477505,600,-
BEIS,Met Office,2023-11-22,07 EQUIPMENT,TECHNOLOGY AND CIO,CABINET OFFICE - COF LEAD ACCOUNT,477505,2500,-
BEIS,Met Office,2023-11-22,07 EQUIPMENT,TECHNOLOGY AND CIO,CABINET OFFICE - COF LEAD ACCOUNT,477505,2600,-
BEIS,Met Office,2023-11-22,08 SOFTWARE LICENCES,TECHNOLOGY AND CIO,CABINET OFFICE - COF LEAD ACCOUNT,477505,7710,-
BEIS,Met Office,2023-11-22,11 SERVICES,TECHNOLOGY AND CIO,CABINET OFFICE - COF LEAD ACCOUNT,477505,16000,-
BEIS,Met Office,2023-11-22,07 EQUIPMENT,TECHNOLOGY AND CIO,CABINET OFFICE - COF LEAD ACCOUNT,477505,19700,-
BEIS,Met Office,2023-11-16,08 SOFTWARE LICENCES,TECHNOLOGY AND CIO,CASTELLAN SOLUTIONS LTD.,483863,-59599.92,747 4527 08
BEIS,Met Office,2023-11-16,08 SOFTWARE LICENCES,TECHNOLOGY AND CIO,CASTELLAN SOLUTIONS LTD.,482125,59599.92,747 4527 08
BEIS,Met Office,2023-11-13,08 SOFTWARE LICENCES,TECHNOLOGY AND CIO,CASTELLAN SOLUTIONS LTD.,483849,59599.92,747 4527 08
BEIS,Met Office,2023-11-13,11 SERVICES,TECHNOLOGY AND CIO,CLOUDREACH EUROPE LIMITED,485557,3804.07,978187168
BEIS,Met Office,2023-11-20,11 SERVICES,TECHNOLOGY AND CIO,CLOUDREACH EUROPE LIMITED,485657,5150,978187168
BEIS,Met Office,2023-11-01,07 EQUIPMENT,TECHNOLOGY AND CIO,COMPUTACENTER (UK) LTD,485030,-23.22,490334648
BEIS,Met Office,2023-11-01,08 SOFTWARE LICENCES,TECHNOLOGY AND CIO,COMPUTACENTER (UK) LTD,485026,-11.01,490334648
BEIS,Met Office,2023-11-20,07 EQUIPMENT,TECHNOLOGY AND CIO,COMPUTACENTER (UK) LTD,485817,333.5,490334648
BEIS,Met Office,2023-11-17,07 EQUIPMENT,TECHNOLOGY AND CIO,COMPUTACENTER (UK) LTD,485816,1008.15,490334648
BEIS,Met Office,2023-11-20,07 EQUIPMENT,TECHNOLOGY AND CIO,COMPUTACENTER (UK) LTD,485818,1068.75,490334648
BEIS,Met Office,2023-11-20,07 EQUIPMENT,TECHNOLOGY AND CIO,COMPUTACENTER (UK) LTD,485819,1140,490334648
BEIS,Met Office,2023-11-27,08 SOFTWARE LICENCES,TECHNOLOGY AND CIO,COMPUTACENTER (UK) LTD,486049,1155.58,490334648
BEIS,Met Office,2023-11-01,07 EQUIPMENT,TECHNOLOGY AND CIO,COMPUTACENTER (UK) LTD,485093,1592.4,490334648
BEIS,Met Office,2023-11-22,08 SOFTWARE LICENCES,TECHNOLOGY AND CIO,COMPUTACENTER (UK) LTD,485939,2795.52,490334648
BEIS,Met Office,2023-11-16,07 EQUIPMENT,TECHNOLOGY AND CIO,COMPUTACENTER (UK) LTD,485781,7345,490334648
BEIS,Met Office,2023-11-06,11 SERVICES,TECHNOLOGY AND CIO,COMPUTACENTER (UK) LTD,485371,7727.24,490334648
BEIS,Met Office,2023-11-29,INFORMATION TECHNOLOGY,TECHNOLOGY AND CIO,COMPUTACENTER (UK) LTD,484806,9269,490334648
BEIS,Met Office,2023-11-29,INFORMATION TECHNOLOGY,TECHNOLOGY AND CIO,COMPUTACENTER (UK) LTD,484806,9356.74,490334648
BEIS,Met Office,2023-11-27,08 SOFTWARE LICENCES,TECHNOLOGY AND CIO,COMPUTACENTER (UK) LTD,486049,23824.06,490334648
BEIS,Met Office,2023-11-29,INFORMATION TECHNOLOGY,TECHNOLOGY AND CIO,COMPUTACENTER (UK) LTD,484806,76387,490334648
BEIS,Met Office,2023-11-22,08 SOFTWARE LICENCES,TECHNOLOGY AND CIO,COMPUTACENTER (UK) LTD,485853,160669.72,490334648
BEIS,Met Office,2023-11-29,INFORMATION TECHNOLOGY,TECHNOLOGY AND CIO,COMPUTACENTER (UK) LTD,486028,240971.62,490334648
BEIS,Met Office,2023-11-16,11 SERVICES,TECHNOLOGY AND CIO,DHL INTERNATIONAL (UK) LTD,485827,-11,751812341
BEIS,Met Office,2023-11-16,11 SERVICES,TECHNOLOGY AND CIO,DHL INTERNATIONAL (UK) LTD,464838,11,751812341
BEIS,Met Office,2023-11-02,08 SOFTWARE LICENCES,TECHNOLOGY AND CIO,Esri (Uk) Ltd,485107,97527.68,787430791
BEIS,Met Office,2023-11-02,11 SERVICES,TECHNOLOGY AND CIO,FLYFORM LTD,485213,1990,237333808
BEIS,Met Office,2023-11-16,11 SERVICES,TECHNOLOGY AND CIO,GCHQ PUBLIC ACCOUNT - CESG,485615,25880.31,888813658
BEIS,Met Office,2023-11-03,08 SOFTWARE LICENCES,TECHNOLOGY AND CIO,GOOGLE IRELAND LTD,485266,33.64,6388047V
BEIS,Met Office,2023-11-16,08 SOFTWARE LICENCES,TECHNOLOGY AND CIO,HARMAN CONNECTED SERVICES,11277,-243156.58,-
BEIS,Met Office,2023-11-15,08 SOFTWARE LICENCES,TECHNOLOGY AND CIO,HARMAN CONNECTED SERVICES,11276,32420.77,-
BEIS,Met Office,2023-11-15,08 SOFTWARE LICENCES,TECHNOLOGY AND CIO,HARMAN CONNECTED SERVICES,11276,48631.15,-
BEIS,Met Office,2023-11-16,08 SOFTWARE LICENCES,TECHNOLOGY AND CIO,HARMAN CONNECTED SERVICES,11252,242488.21,-
BEIS,Met Office,2023-11-15,11 SERVICES,TECHNOLOGY AND CIO,"IBL SOFTWARE ENGINEERING, SPOL S.R.O.",478201,70719.65,SK2020241883
BEIS,Met Office,2023-11-03,08 SOFTWARE LICENCES,TECHNOLOGY AND CIO,Ibm United Kingdom Ltd,485267,7300.9,107328000
BEIS,Met Office,2023-11-03,11 SERVICES,TECHNOLOGY AND CIO,Ibm United Kingdom Ltd,485273,13440.5,107328000
BEIS,Met Office,2023-11-29,08 SOFTWARE LICENCES,TECHNOLOGY AND CIO,JFROG LTD,11302,7207.35,514130491
BEIS,Met Office,2023-11-29,08 SOFTWARE LICENCES,TECHNOLOGY AND CIO,JFROG LTD,11302,31712.35,514130491
BEIS,Met Office,2023-11-09,11 SERVICES,TECHNOLOGY AND CIO,LAFOSSE ASSOCIATES,485460,24111.36,GB 360026537
BEIS,Met Office,2023-11-07,08 SOFTWARE LICENCES,TECHNOLOGY AND CIO,NEXUS OPEN SYSTEMS LTD,485397,247.92,723221673
BEIS,Met Office,2023-11-29,13 MISCELLANEOUS,TECHNOLOGY AND CIO,OGC (OPEN GEOSPATIAL CONSORTIUM) INC.,11263,9891.12,-
BEIS,Met Office,2023-11-14,08 SOFTWARE LICENCES,TECHNOLOGY AND CIO,Presentation Cartography Ltd,485212,283.67,-
BEIS,Met Office,2023-11-14,08 SOFTWARE LICENCES,TECHNOLOGY AND CIO,Presentation Cartography Ltd,485211,334.13,-
BEIS,Met Office,2023-11-14,08 SOFTWARE LICENCES,TECHNOLOGY AND CIO,Presentation Cartography Ltd,485211,2014.48,-
BEIS,Met Office,2023-11-14,08 SOFTWARE LICENCES,TECHNOLOGY AND CIO,Presentation Cartography Ltd,485212,7091.76,-
BEIS,Met Office,2023-11-14,08 SOFTWARE LICENCES,TECHNOLOGY AND CIO,Presentation Cartography Ltd,485212,7520.24,-
BEIS,Met Office,2023-11-14,08 SOFTWARE LICENCES,TECHNOLOGY AND CIO,Presentation Cartography Ltd,485211,8353.28,-
BEIS,Met Office,2023-11-14,08 SOFTWARE LICENCES,TECHNOLOGY AND CIO,Presentation Cartography Ltd,485212,40824.16,-
BEIS,Met Office,2023-11-14,11 SERVICES,TECHNOLOGY AND CIO,QA LTD,484448,1800,864455303
BEIS,Met Office,2023-11-02,11 SERVICES,TECHNOLOGY AND CIO,QA LTD,484609,4500,864455303
BEIS,Met Office,2023-11-03,11 SERVICES,TECHNOLOGY AND CIO,QA LTD,484769,4500,864455303
BEIS,Met Office,2023-11-10,11 SERVICES,TECHNOLOGY AND CIO,QA LTD,484611,5100,864455303
BEIS,Met Office,2023-11-02,11 SERVICES,TECHNOLOGY AND CIO,QA LTD,484612,5400,864455303
BEIS,Met Office,2023-11-14,11 SERVICES,TECHNOLOGY AND CIO,QA LTD,484447,5700,864455303
BEIS,Met Office,2023-11-13,11 SERVICES,TECHNOLOGY AND CIO,QA LTD,484607,5700,864455303
BEIS,Met Office,2023-11-17,11 SERVICES,TECHNOLOGY AND CIO,QA LTD,485774,5700,864455303
BEIS,Met Office,2023-11-14,11 SERVICES,TECHNOLOGY AND CIO,QA LTD,484606,6000,864455303
BEIS,Met Office,2023-11-30,11 SERVICES,TECHNOLOGY AND CIO,QA LTD,486126,6300,864455303
BEIS,Met Office,2023-11-17,11 SERVICES,TECHNOLOGY AND CIO,QA LTD,485776,6600,864455303
BEIS,Met Office,2023-11-30,11 SERVICES,TECHNOLOGY AND CIO,QA LTD,486131,8333,864455303
BEIS,Met Office,2023-11-03,11 SERVICES,TECHNOLOGY AND CIO,QA LTD,484608,10500,864455303
BEIS,Met Office,2023-11-22,11 SERVICES,TECHNOLOGY AND CIO,QA LTD,485882,10500,864455303
BEIS,Met Office,2023-11-03,11 SERVICES,TECHNOLOGY AND CIO,QA LTD,484605,10800,864455303
BEIS,Met Office,2023-11-03,11 SERVICES,TECHNOLOGY AND CIO,QA LTD,484604,11100,864455303
BEIS,Met Office,2023-11-20,11 SERVICES,TECHNOLOGY AND CIO,QA LTD,485778,11700,864455303
BEIS,Met Office,2023-11-29,11 SERVICES,TECHNOLOGY AND CIO,QA LTD,485779,12380,864455303
BEIS,Met Office,2023-11-20,11 SERVICES,TECHNOLOGY AND CIO,QA LTD,485777,12900,864455303
BEIS,Met Office,2023-11-20,11 SERVICES,TECHNOLOGY AND CIO,QA LTD,485775,13200,864455303
BEIS,Met Office,2023-11-13,11 SERVICES,TECHNOLOGY AND CIO,QA LTD,484610,18000,864455303
BEIS,Met Office,2023-11-10,11 SERVICES,TECHNOLOGY AND CIO,QA LTD,484838,21570,864455303
BEIS,Met Office,2023-11-06,08 SOFTWARE LICENCES,TECHNOLOGY AND CIO,SPECIALIST COMPUTER CENTRES,485314,14639.2,313651680
BEIS,Met Office,2023-11-21,11 SERVICES,TECHNOLOGY AND CIO,SPECIALIST COMPUTER CENTRES,485880,24111.56,313651680
BEIS,Met Office,2023-11-02,07 EQUIPMENT,TECHNOLOGY AND CIO,SSE CONTRACTING LTD,485176,119.51,382894546
BEIS,Met Office,2023-11-01,07 EQUIPMENT,TECHNOLOGY AND CIO,SSE CONTRACTING LTD,485137,1980.59,382894546
BEIS,Met Office,2023-11-02,11 SERVICES,TECHNOLOGY AND CIO,SSE CONTRACTING LTD,485175,7148.73,382894546
BEIS,Met Office,2023-11-01,08 SOFTWARE LICENCES,TECHNOLOGY AND CIO,STORMAGIC LTD,485136,6248,GB 879761748
BEIS,Met Office,2023-11-06,11 SERVICES,TECHNOLOGY AND CIO,University Of Reading,485221,-300,200012659
BEIS,Met Office,2023-11-02,11 SERVICES,TECHNOLOGY AND CIO,WIREFAST LTD,485203,1661.45,749536001
BEIS,Met Office,2023-11-02,11 SERVICES,TECHNOLOGY AND CIO,WIREFAST LTD,485202,1963.99,749536001
BEIS,Met Office,2023-11-02,11 SERVICES,TECHNOLOGY AND CIO,WIREFAST LTD,485201,2122.92,749536001
BEIS,Met Office,2023-11-08,11 SERVICES,TECHNOLOGY AND CIO,WT CONSULTANCY (SW) LTD,485249,700,223 4662 25
BEIS,Met Office,2023-11-21,Unknown,Unknown,UNITED UTILITIES WATER PLC,376461,0,-
BEIS,Met Office,2023-11-21,Unknown,Unknown,UNITED UTILITIES WATER PLC,378719,0,-
BEIS,Met Office,2023-11-21,Unknown,Unknown,UNITED UTILITIES WATER PLC,383145,0,-
BEIS,Met Office,2023-11-21,Unknown,Unknown,UNITED UTILITIES WATER PLC,387240,0,-
BEIS,Met Office,2023-11-21,Unknown,Unknown,UNITED UTILITIES WATER PLC,394807,0,-
